Cogmind - Beta 9.6 @@@ ROGUE MODE // 2020.09.05 @ 13:09:11 // Winter2019/RPGLIKE Player: Hermelin Result: Destroyed by Executioner with Helical Railgun Performance ------------- Evolutions (7) 3500 Regions Visited (34) 6800 Robots Destroyed (750) 3750 Value Destroyed (31589) 31589 Prototype IDs (105) 2100 Alien Tech Used (4) 800 Bonus (27767) 27767 TOTAL SCORE: 76306 Bonus ------- Triggered Max Security 1000 High Alert Combat Kills 11292 Follower Combat Kills 1727 Aligned with FarCom 300 Met Data Miner 300 Met Imprinter 300 Destroyed Z-Imprinter 1000 Triggered Deep Caves Wall 1000 Exposed GOLEM Chamber 9500 Met Warlord at Base 500 MAIN.C Attacked Warlord 500 Warlord Defense Kill 1772 Scanned by Researcher 500 Friendly Fire -1924 Cogmind --------- Core Integrity 0/1350 Matter 244/300 Energy 564/1700 System Corruption 4% Temperature Cool (0) Movement Treading (190) Ox1 Location -3/Quarantine Parts ------- > --- POWER (2) -------- Vortex Chain Reactor > --- PROPULSION (2) --- Advanced Heavy Siege Treads > --- UTILITY (14) ----- Advanced Heat Sink Assembled Nanovents Assembled Nanovents Assembled Biocell Array Experimental Terrain Scanner Assembled Combat Suite Advanced Weapon Cycler Advanced Transmission Jammer Assembled Alloy Armor Advanced Hardlight Generator Improved System Backup Module GOLEM Unit Stasis Generator > --- WEAPON (4) ------- Assembled Focal Cannon Firepult Improved KE Penetrator > --- INVENTORY (8) ---- Protomatter-63 Protomatter-58 Protomatter-51 Centrium Light Armor Plating Vortex Catalyst Activator Plasma Flamer Peak State ------------ > --- POWER ------------ Vortex Chain Reactor > --- PROPULSION ------- Advanced Heavy Siege Treads > --- UTILITY ---------- Advanced Heat Sink Assembled Nanovents Assembled Nanovents Assembled Biocell Array Experimental Terrain Scanner Assembled Combat Suite Advanced Weapon Cycler Advanced Transmission Jammer Assembled Alloy Armor Advanced Hardlight Generator Improved System Backup Module GOLEM Unit Stasis Generator > --- WEAPON ----------- Assembled Focal Cannon Firepult Improved KE Penetrator > --- INVENTORY -------- Protomatter Protomatter Centrium Light Armor Plating Vortex Catalyst Activator Plasma Flamer [Rating: 190] Favorites ----------- Power Improved Deuterium Engine Engine Improved Deuterium Engine Power Core Enhanced Nuclear Core Reactor Antimatter Reactor Propulsion Armored Treads Treads Armored Treads Leg Assembled Alloy Leg Wheel Wheel Hover Unit Zionite Glidesys I Utility Advanced Hardlight Generator Device Advanced Hardlight Generator Storage Assembled Biocell Array Processor 0b10 Decoder Chip [Scout] Hackware Hacking Suite Protection Damper Plating Artifact Stasis Generator Weapon Gauss Rifle Energy Gun Zionite Phaser-S Energy Cannon Assembled Focal Cannon Ballistic Gun Gauss Rifle Ballistic Cannon Antimatter Cannon Launcher Heavy Missile Launcher Slashing Weapon Greatsword Special Melee Weapon Datajack Build | -11 -10 -10 -9 -9 -9 -8 -8 -7 -7 -7 -7 -6 -6 -6 -6 -6 -6 -6 -6 -5 -5 -5 -5 -5 -4 -4 -4 -4 -4 -4 -4 -3 -3 -3 ------- Run | Scr Mat Min Mat Min Exi Min Mat Fac Low Low Dat Pro Fac Was Fac Low Low Zio Dee Pro Fac Upp Upp War Pro Fac Was Fac Upp Upp Zhi Pro Res Qua Slots Evolved 17 | 3 1 . 4 . . . 3 1 . . 1 . 1 . . . . . . . . . . . . 1 . . . . . 1 . 1 Power 1 | . . . . . . . 1 . . . . . . . . . . . . . . . . . . . . . . . . . . . Propulsion 1 | 1 . . . . . . . . . . . . . . . . . . . . . . . . . . . . . . . . . . Utility 13 | 1 1 . 4 . . . 1 1 . . 1 . 1 . . . . . . . . . . . . 1 . . . . . 1 . 1 Weapon 2 | 1 . . . . . . 1 . . . . . . . . . . . . . . . . . . . . . . . . . . . Parts Attached 198 | 7 5 6 20 1 1 2 21 10 1 5 . 6 8 9 11 1 . 6 29 2 6 . . 14 1 6 3 1 1 3 5 1 3 3 Power 15 | 1 . 1 2 . . . 3 2 . . . . 1 1 2 . . . 1 . . . . 1 . . . . . . . . . . Engine 8 | 1 . . 2 . . . 2 2 . . . . 1 . . . . . . . . . . . . . . . . . . . . . Core 3 | . . 1 . . . . 1 . . . . . . . 1 . . . . . . . . . . . . . . . . . . . Reactor 4 | . . . . . . . . . . . . . . 1 1 . . . 1 . . . . 1 . . . . . . . . . . Propulsion 18 | 2 . 2 2 . . . 2 . . . . . . 1 . . . . 4 . . . . 2 . 1 1 . . 1 . . . . Treads 14 | 1 . 2 2 . . . 2 . . . . . . 1 . . . . 2 . . . . 1 . 1 1 . . 1 . . . . Leg 1 | . . . . . . . . . . . . . . . . . . . . . . . . 1 . . . . . . . . . . Wheel 1 | 1 . . . . . . . . . . . . . . . . . . . . . . . . . . . . . . . . . . Hover 2 | . . . . . . . . . . . . . . . . . . . 2 . . . . . . . . . . . . . . . Flight . | . . . . . . . . . . . . . . . . . . . . . . . . . . . . . . . . . . . Utility 116 | 2 3 1 11 1 . 1 10 7 1 5 . 6 7 7 6 . . 3 15 1 5 . . 5 . 2 2 1 1 1 5 1 3 3 Device 63 | 2 3 . 3 . . 1 5 4 1 3 . 2 2 2 5 . . 1 7 . 5 . . 4 . 2 1 1 1 1 2 1 2 2 Storage 5 | . . . . . . . . . . 1 . . . . . . . . 1 . . . . 1 . . . . . . 2 . . . Processor 6 | . . . 1 . . . 1 . . . . . . . . . . 1 1 1 . . . . . . . . . . . . 1 . Hackware 2 | . . . 1 . . . . . . . . . . . 1 . . . . . . . . . . . . . . . . . . . Protection 39 | . . 1 6 1 . . 4 3 . 1 . 4 5 5 . . . 1 6 . . . . . . . 1 . . . 1 . . . Artifact 1 | . . . . . . . . . . . . . . . . . . . . . . . . . . . . . . . . . . 1 Weapon 49 | 2 2 2 5 . 1 1 6 1 . . . . . . 3 1 . 3 9 1 1 . . 6 1 3 . . . 1 . . . . Energy Gun 13 | 1 . 1 1 . . . 1 . . . . . . . . . . . 5 . . . . 2 . 2 . . . . . . . . Energy Cannon 10 | . 1 . 2 . . 1 2 . . . . . . . . . . . 1 . . . . 2 . 1 . . . . . . . . Ballistic Gun 20 | 1 1 1 2 . . . 3 1 . . . . . . 2 1 . 2 2 1 1 . . . 1 . . . . 1 . . . . Ballistic Cannon 2 | . . . . . . . . . . . . . . . 1 . . . . . . . . 1 . . . . . . . . . . Launcher 2 | . . . . . . . . . . . . . . . . . . . 1 . . . . 1 . . . . . . . . . . Special Weapon . | . . . . . . . . . . . . . . . . . . . . . . . . . . . . . . . . . . . Impact Weapon . | . . . . . . . . . . . . . . . . . . . . . . . . . . . . . . . . . . . Slashing Weapon 1 | . . . . . . . . . . . . . . . . . . 1 . . . . . . . . . . . . . . . . Piercing Weapon . | . . . . . . . . . . . . . . . . . . . . . . . . . . . . . . . . . . . Special Melee Weapon 1 | . . . . . 1 . . . . . . . . . . . . . . . . . . . . . . . . . . . . . Unidentified Prototypes 37 | . . . 4 . . . . . . . . . . . 3 . . . 9 . . . . 9 . 2 1 . . 2 5 . 1 1 Parts Lost 10 | . . . 2 . . 1 . . . 1 . 1 . . . . . . 1 . . . . . . 2 . . . . . . . 2 Power . | . . . . . . . . . . . . . . . . . . . . . . . . . . . . . . . . . . . Propulsion . | . . . . . . . . . . . . . . . . . . . . . . . . . . . . . . . . . . . Utility 10 | . . . 2 . . 1 . . . 1 . 1 . . . . . . 1 . . . . . . 2 . . . . . . . 2 Weapon . | . . . . . . . . . . . . . . . . . . . . . . . . . . . . . . . . . . . Highest Loss Streak 1 | . . . 1 . . 1 . . . 1 . 1 . . . . . . 1 . . . . . . 1 . . . . . . . 1 Average Slot Usage (%) 83 | . 99 100 99 100 100 99 99 94 93 92 97 98 97 83 76 77 77 75 78 76 77 77 77 76 75 72 73 72 73 74 74 74 76 76 Engine 3 | . 13 10 6 8 8 8 10 12 12 12 11 11 11 7 . . . . . . . . . . . . . . . . . . . . Reactor 4 | . . . . . . . . . . . . . . 2 7 11 11 11 8 5 5 5 5 5 5 5 5 5 5 5 5 4 4 4 Treads 7 | . 13 12 17 16 16 16 13 12 12 12 11 11 11 7 5 5 5 5 4 5 5 5 5 4 5 5 5 5 5 5 5 4 4 4 Device 28 | . 30 26 22 16 16 17 26 28 31 32 36 34 35 26 26 27 27 25 28 31 27 27 27 26 27 31 37 35 36 35 34 35 38 35 Storage 3 | . . . . . . . . . . . 5 5 5 5 5 5 5 5 2 5 5 5 5 5 5 5 5 5 5 5 5 4 4 4 Processor 1 | . . . 1 . . . 2 1 . . . . . . . . . . 2 1 5 5 5 5 5 2 . . . . . . . . Protection 14 | . . 10 21 33 33 31 20 18 18 16 11 16 15 16 11 11 11 12 13 11 11 11 11 11 11 9 9 10 10 10 10 9 9 8 Energy Cannon 4 | . . 8 6 8 1 7 2 . . . . . . . . . . . 5 5 5 5 5 7 11 10 10 10 10 10 10 9 9 9 Ballistic Gun 10 | . 13 12 8 8 8 8 17 19 18 18 17 17 16 16 12 11 16 13 5 9 11 11 11 4 3 . . . . 2 5 4 4 4 Naked Turns . | . . . . . . . . . . . . . . . . . . . . . . . . . . . . . . . . . . . Heaviest Build 152 | 10 13 16 31 31 31 31 62 73 73 73 63 73 79 130 123 123 120 131 141 131 133 133 133 143 140 141 142 142 142 147 147 149 149 152 Greatest Support 105 | 20 15 25 51 51 51 51 51 45 45 45 45 45 45 75 75 75 75 75 95 95 85 75 75 75 75 90 105 95 95 95 85 85 85 85 Greatest Overweight (x) 16 | . . 1 1 . . . 1 1 1 1 1 1 1 2 1 1 1 1 15 1 1 1 1 16 1 1 1 1 1 1 1 1 1 1 Average Overweight (x) . | . . . . . . . . 1 1 1 1 1 1 1 1 1 1 1 . 1 1 1 1 1 1 1 . 1 1 1 1 1 1 1 Largest Inventory Capacity 8 | 2 2 3 5 6 6 6 6 6 6 6 6 6 6 6 7 7 7 7 7 7 7 7 7 8 8 8 8 8 8 8 8 8 8 8 Average Capacity 6 | 1 2 2 4 5 6 6 6 6 6 6 6 6 6 6 6 7 7 7 7 7 7 7 7 7 8 8 8 8 8 8 8 8 8 8 Most Carried 8 | 2 2 3 5 6 6 6 6 6 6 6 6 6 6 6 7 7 7 7 7 7 7 7 7 8 8 8 8 8 8 8 8 8 8 8 Average Carried 6 | . 1 2 4 5 5 5 5 5 5 5 6 5 5 6 6 7 6 6 5 7 6 7 7 7 8 7 7 8 8 7 8 7 6 7 Final Capacity 8 | 2 2 3 5 6 6 6 6 6 6 6 6 6 6 6 7 7 7 7 7 7 7 7 7 8 8 8 8 8 8 8 8 8 8 8 Final Carried 8 | 1 2 3 5 6 6 6 6 6 6 6 6 6 6 6 7 7 7 7 7 7 7 7 7 8 8 8 8 8 8 8 8 7 8 7 Class Distribution -------------------- 23% | Hauler-Tank 21% | Hauler-Mutant 16% | Tank 9% | Scavenger-Mutant 9% | Hauler-Skirmisher 8% | Scavenger-Tank 3% | Hauler-Golem 3% | Mutant Dominant Class ---------------- Mutant | -10/Materials Mutant | -10/Mines Scavenger-Mutant | -9/Materials Scavenger-Mutant | -9/Mines Scavenger-Mutant | -9/Exiles Scavenger-Skirmisher | -8/Mines Tank | -8/Materials Tank | -7/Factory Tank | -7/Lower Caves Tank | -7/Lower Caves Scavenger-Tank | -7/Data Miner Scavenger-Tank | -6/Proximity Caves Tank | -6/Factory Scavenger-Tank | -6/Waste Hauler-Tank | -6/Factory Hauler-Tank | -6/Lower Caves Hauler-Tank | -6/Lower Caves Hauler-Tank | -6/Zion Hauler-Mutant | -6/Deep Caves Hauler-Tank | -5/Proximity Caves Hauler-Skirmisher | -5/Factory Hauler-Mutant | -5/Upper Caves Hauler-Tank | -5/Upper Caves Hauler-Tank | -5/Warlord Hauler-Mutant | -4/Proximity Caves Hauler-Skirmisher | -4/Factory Hauler-Mutant | -4/Waste Hauler-Mutant | -4/Factory Hauler-Mutant | -4/Upper Caves Hauler-Mutant | -4/Upper Caves Hauler-Mutant | -4/Zhirov Hauler-Mutant | -3/Proximity Caves Hauler-Skirmisher | -3/Research Hauler-Skirmisher | -3/Quarantine Resources | -11 -10 -10 -9 -9 -9 -8 -8 -7 -7 -7 -7 -6 -6 -6 -6 -6 -6 -6 -6 -5 -5 -5 -5 -5 -4 -4 -4 -4 -4 -4 -4 -3 -3 -3 ----------- Run | Scr Mat Min Mat Min Exi Min Mat Fac Low Low Dat Pro Fac Was Fac Low Low Zio Dee Pro Fac Upp Upp War Pro Fac Was Fac Upp Upp Zhi Pro Res Qua Matter Collected 9520 | 272 243 239 832 116 64 112 1238 416 277 686 . 775 156 220 517 278 492 20 840 97 105 310 160 140 35 100 30 10 10 100 78 142 254 156 Remotely 6205 | 195 240 239 503 . . 16 1238 416 277 686 . 775 156 220 234 278 492 20 220 . . . . . . . . . . . . . . . Salvage Created 32082 | 83 530 600 2469 469 . 388 2101 440 421 1037 . 1110 214 231 733 628 894 . 2677 395 779 446 433 478 421 2795 838 196 215 1225 130 881 1706 6119 Parts 1382 | 6 46 51 171 23 . 12 116 49 23 54 . 39 11 9 29 15 36 . 49 18 29 14 18 18 9 94 10 7 4 43 1 42 101 235 Haulers Intercepted 15 | . . . 5 . . . 5 1 . . . . . . . . . . . . 1 . . . . 2 . . . . . . . 1 Recyclers Shooed 9 | . . 1 2 . . . . 1 . . . . . . . . . . . . 1 . . . . 3 . . . . . . 1 . Parts Field Recycled . | . . . . . . . . . . . . . . . . . . . . . . . . . . . . . . . . . . . Retrieved Matter . | . . . . . . . . . . . . . . . . . . . . . . . . . . . . . . . . . . . Parts Self-Destructed 434 | . . . . . . . . . 22 54 . 45 . . . 15 36 4 . 18 . 15 18 114 8 . . . 3 39 1 42 . . Prevented 25 | . . . . . . . . . . . . . . . . 1 . . . . . . . 23 . . . . . 1 . . . . Kills | -11 -10 -10 -9 -9 -9 -8 -8 -7 -7 -7 -7 -6 -6 -6 -6 -6 -6 -6 -6 -5 -5 -5 -5 -5 -4 -4 -4 -4 -4 -4 -4 -3 -3 -3 ------- Run | Scr Mat Min Mat Min Exi Min Mat Fac Low Low Dat Pro Fac Was Fac Low Low Zio Dee Pro Fac Upp Upp War Pro Fac Was Fac Upp Upp Zhi Pro Res Qua Combat Hostiles Destroyed 653 | . 16 21 61 6 . 7 48 12 13 24 . 23 4 . 15 9 18 . 75 11 9 8 6 12 3 52 . 3 2 27 . 22 30 116 Melee 1 | . . . . . . . . . . . . . . . . . . . . . . . . 1 . . . . . . . . . . Guns 291 | . 16 13 30 4 . 3 43 12 13 24 . 23 4 . 10 4 18 . 32 7 7 6 2 4 . 3 . . . 2 . 3 6 2 Cannons 182 | . . 8 31 2 . 4 4 . . . . . . . 5 5 . . 12 4 2 2 4 7 3 15 . 3 . 9 . 15 16 31 AOE 85 | . . . . . . . 1 . . . . . . . . . . . 31 . . . . . . 14 . . . 7 . 1 1 30 Classes Destroyed 30 | 2 5 2 3 . . 1 1 1 1 . . . . . . . . . 4 . . . 1 4 1 . . . . . . . . 4 Worker 15 | . 1 . 3 1 . . 2 2 . . . . . . . . . . . . 2 . . . . 2 . . . . . . 2 . Builder 9 | . . 1 . . . . . 1 . . . . . . . . . . . . . . . . . 6 . . . . . . 1 . Tunneler 4 | 1 . . . . . 1 1 . . . . . . . . . . . . . . . . . . . . . . . . . 1 . Hauler 15 | . . . 5 . . . 5 1 . . . . . . . . . . . . 1 . . . . 2 . . . . . . . 1 Recycler 10 | 1 . 1 2 1 . . 1 1 . . . . . . . . . . . . . . . . . 3 . . . . . . . . Carrier 1 | . . . . . . . . . . . . . . . . . . . . . . . . . . . . . . . . . . 1 Mechanic 6 | . . . . . . . . . . . . . . . . . . . . . . . . . . . . . . . . . . 6 Operator 8 | . 1 . 3 . . . . 1 . . . . . . . . . . . . 1 . . . . . . 1 . . . . 1 . Watcher 16 | . 1 . 4 . . . 4 . . . . . 1 . 3 . . . . . . . . . . 2 . . . . . . 1 . Swarmer 137 | . 3 9 13 3 . 3 8 3 12 10 . 8 . . 2 1 14 . . 5 . 1 1 2 . 12 . 2 . 6 . 12 7 . Saboteur 8 | . . . . . . . . . . . . . . . . . . . . . . . . . . . . . . . . . . 8 Grunt 250 | . 13 10 35 2 . 3 33 4 . 8 . 10 2 . 8 4 4 . . 5 4 5 1 2 3 20 . 1 . 8 . 7 9 49 Brawler 25 | . . . 2 1 . . 2 1 . 2 . 3 . . . . . . . . . 1 . . . . . . . 3 . 1 2 7 Duelist 19 | . . . . . . . 1 . . 1 . . . . . 3 . . . . . . . . . 1 . . . 2 . 1 . 10 Protector 9 | . . . 1 . . . . . . 1 . . . . . . . . . . . . . . . . . . . 1 . . . 6 Researcher 1 | . . . . . . . . . . . . . . . . . . . . . . . . . . . . . . . . . . 1 Sentry 36 | . . 2 10 . . . 4 2 . 1 . 2 2 . 2 1 . . . . 1 1 1 . . 4 . . . 2 . 1 . . Demolisher 2 | . . . . . . . . . . . . . . . . . . . . . . . . 2 . . . . . . . . . . Specialist 2 | . . . . . . . . . . . . . . . . . . . . . . . . 2 . . . . . . . . . . Hunter 27 | . . . . . . 1 . . . . . . . . . . . . . . 1 . 3 . . 6 . . 2 2 . . 6 6 Programmer 47 | . . . . . . . . 2 . . . . . . 3 . . . . . 3 . . . . 9 . . . 2 . . 6 22 Behemoth 4 | . . . . . . . . . 1 1 . . . . . . . . . 1 . . . 1 . . . . . . . . . . Investigator 2 | . . . . . . . . . . . . . . . . . . . . . . . . . . . . . . . . . . 2 Striker 4 | . . . . . . . . . . . . . . . . . . . . . . . . 2 . . . . . . . . . 2 Executioner 7 | . . . . . . . . . . . . . . . . . . . . . . . . 1 . . . . . . . . . 6 Z-Light 3 | . . . . . . . . . . . . . . . . . . . 3 . . . . . . . . . . . . . . . Samaritan 3 | . . . . . . . . . . . . . . . . . . . . . . . . . 2 . . . . 1 . . . . Assembler 2 | . . . . . . . . . . . . . . . . . . . 2 . . . . . . . . . . . . . . . Assembled 39 | . . . . . . . . . . . . . . . . . . . 39 . . . . . . . . . . . . . . . Golem 33 | . . . . . . . . . . . . . . . . . . . 33 . . . . . . . . . . . . . . . Wasp 1 | . . . . . . . . . . . . . . . . . . . 1 . . . . . . . . . . . . . . . Thug 2 | . . . . . . . . . . . . . . 1 . . . . . . . . . . . . . . . 1 . . . . Butcher 1 | . . . . . . . . . . . . . . . . . . . 1 . . . . . . . . . . . . . . . Mutant 2 | . . . . . . . . . . . . . . . . . . . . . . . 1 . . . . . . 1 . . . . Best Kill Streak 55 | 1 4 6 6 4 . 3 8 4 4 6 . 4 3 . 5 6 4 . 46 5 5 4 2 11 3 22 . 3 2 15 . 6 14 55 Combat Bots Only 50 | . 4 5 6 3 . 3 8 3 4 6 . 4 2 . 5 6 4 . 44 5 4 4 2 11 3 19 . 3 2 15 . 6 11 50 Max Kills in Single Turn 7 | 1 2 1 2 2 . 1 3 2 2 2 . 2 2 1 1 2 2 . 7 1 2 1 1 2 1 4 . 1 1 3 . 3 2 5 Gunslinging 1 | . 1 . 1 . . . 1 . 1 1 . 1 . . . . 1 . . . . . . . . . . . . . . . . . Exploded 7 | . . . . . . . 1 . . . . . . . . . . . 7 . . . . . . 3 . . . 2 . 1 1 4 Melee 1 | . . . . . . . . . . . . . . . . . . . . . . . . 1 . . . . . . . . . . Uniques/NPCs Destroyed 1 | . . . . . . . . . . . . . . . . . . . 1 . . . . . . . . . . . . . . . Z-Imprinter (-6/Deep Caves) Combat | -11 -10 -10 -9 -9 -9 -8 -8 -7 -7 -7 -7 -6 -6 -6 -6 -6 -6 -6 -6 -5 -5 -5 -5 -5 -4 -4 -4 -4 -4 -4 -4 -3 -3 -3 -------- Run | Scr Mat Min Mat Min Exi Min Mat Fac Low Low Dat Pro Fac Was Fac Low Low Zio Dee Pro Fac Upp Upp War Pro Fac Was Fac Upp Upp Zhi Pro Res Qua Damage Taken 28227 | . 698 1229 2211 257 . 395 1726 517 678 1440 . 1529 111 59 588 611 791 . 3863 211 84 225 226 1511 147 2142 . 88 35 351 431 609 768 4696 Core 16637 | . 562 960 1450 142 . 246 1122 292 398 823 . 928 52 36 260 284 389 . 2104 117 42 98 126 825 78 1228 . 67 24 187 250 347 376 2824 Absorbed by Shields 8608 | . . . . . . . 411 177 126 243 . 363 75 . 72 222 456 . 612 114 48 138 138 863 72 1134 . 24 55 192 . 239 426 2408 Reduced by Siege Mode 226 | . . . . . . . . . . . . . . . . . 2 . 39 . 1 1 2 . 3 15 . . 1 2 . 12 2 146 Redirected to Core 15070 | . 450 752 1260 130 . 212 1057 272 342 705 . 857 52 36 240 270 367 . 2093 104 42 98 111 757 78 1102 . 19 21 175 250 327 337 2554 Core Remaining (%) 83 | 100 . 91 . . . 67 86 . . . . 100 . . . . . . . 100 . . . . 25 . . . . . . 100 . . Volleys Fired 1581 | 2 66 52 166 19 . 19 102 31 18 53 . 60 8 10 33 21 41 . 327 17 27 21 21 18 19 98 12 12 5 51 10 37 66 139 Largest 3 | 2 2 2 2 2 . 2 3 3 3 3 . 3 3 3 3 3 3 . 3 3 3 3 3 3 2 2 1 1 1 2 1 2 2 2 Hottest 275 | 70 70 88 91 91 . 91 107 84 84 84 . 84 84 84 96 96 89 . 121 118 91 88 88 185 60 275 25 250 250 250 25 250 250 250 Shots Fired 3121 | 4 131 104 330 37 . 38 302 93 54 159 . 180 24 30 91 57 123 . 452 51 73 62 60 33 24 123 12 12 5 68 10 70 122 187 Gun 2157 | 4 131 59 204 19 . 19 283 93 54 159 . 180 24 30 67 42 123 . 310 34 46 42 40 15 5 20 . . . 17 . 33 56 48 Cannon 957 | . . 45 126 18 . 19 19 . . . . . . . 24 15 . . 135 17 27 20 20 18 19 103 12 12 5 51 10 37 66 139 Launcher 7 | . . . . . . . . . . . . . . . . . . . 7 . . . . . . . . . . . . . . . Special . | . . . . . . . . . . . . . . . . . . . . . . . . . . . . . . . . . . . Kinetic 1836 | 2 66 52 166 19 . 19 283 93 54 159 . 180 24 30 91 57 123 . 103 20 46 42 40 . 5 8 . . . 17 . 33 56 48 Thermal 1010 | 2 65 52 164 18 . 19 . . . . . . . . . . . . 135 17 27 20 20 12 19 108 12 12 5 51 10 37 66 139 Explosive 7 | . . . . . . . . . . . . . . . . . . . 7 . . . . . . . . . . . . . . . Electromagnetic 19 | . . . . . . . 19 . . . . . . . . . . . . . . . . . . . . . . . . . . . Entropic 28 | . . . . . . . . . . . . . . . . . . . . . . . . 21 . 7 . . . . . . . . Phasic 221 | . . . . . . . . . . . . . . . . . . . 207 14 . . . . . . . . . . . . . . Robot Hit Streak 62 | 3 17 15 49 16 . 29 43 22 17 35 . 23 16 16 21 48 22 . 57 14 33 33 12 17 28 52 38 51 59 33 11 44 39 62 Robot Miss Streak 5 | . 3 3 4 2 . 2 5 2 1 2 . 2 1 1 4 1 3 . 4 2 1 2 1 2 1 3 . . 1 2 . 2 2 1 Penetration Max 1 | . . . . . . . 1 1 1 . . 1 1 . 1 1 1 . 1 1 1 1 1 1 . 1 . . . 1 . 1 1 1 Secondary Targets 52 | . 2 . 2 . . . 14 2 7 7 . 7 1 . 1 . 8 . 1 . . . . . . . . . . . . . . . Max Gunslinging Chain 2 | . 1 . 1 . . . 1 1 2 2 . 1 1 . 1 . 1 . 1 . . . . . . . . . . . . . . . Shots Hit Robots 2491 | 3 95 79 238 28 4 30 240 73 45 125 . 149 20 20 68 46 88 . 390 35 53 53 44 26 19 114 11 10 5 59 8 52 98 163 Core Hits 1789 | 3 37 33 96 12 . 13 99 31 18 42 . 48 10 9 29 19 31 . 334 19 26 21 16 26 10 138 6 4 6 60 1 42 73 477 Critical Hits 110 | . 1 . 17 4 . 4 5 6 . 8 . 1 2 3 3 . 7 . 12 1 9 2 1 1 . . . . . 3 . 4 8 8 Critical Kills 36 | . 1 . 7 2 . 2 . 4 . 1 . 1 . 1 2 . 2 . 3 . 5 . . 1 . . . . . 1 . . 3 . Critical Parts Destroyed 73 | . . . 10 2 . 2 5 2 . 7 . . 2 2 1 . 5 . 9 1 4 2 1 . . . . . . 1 . 4 5 8 Melee Attacks 30 | . . . . . 4 . . . . . . . . . . . . 26 . . . . . . . . . . . . . . . . Impact . | . . . . . . . . . . . . . . . . . . . . . . . . . . . . . . . . . . . Slashing 26 | . . . . . . . . . . . . . . . . . . 26 . . . . . . . . . . . . . . . . Piercing . | . . . . . . . . . . . . . . . . . . . . . . . . . . . . . . . . . . . Sneak Attacks 4 | . . . . . 4 . . . . . . . . . . . . . . . . . . . . . . . . . . . . . Combat Hostiles . | . . . . . . . . . . . . . . . . . . . . . . . . . . . . . . . . . . . Follow-up Attacks . | . . . . . . . . . . . . . . . . . . . . . . . . . . . . . . . . . . . Damage Inflicted 93985 | 32 1079 1271 4442 575 . 567 5520 1987 1015 2792 . 3369 648 581 1987 1329 2223 . 16519 1244 1933 1660 1495 2152 770 7089 560 553 157 3278 445 2653 4615 19445 Guns 40109 | 32 1079 612 2139 206 . 174 4984 1976 1015 2792 . 3369 648 581 1375 832 2223 . 8304 725 924 852 685 1138 48 582 . . . 353 . 519 953 989 Cannons 32872 | . . 659 2281 369 . 393 439 . . . . . . . 603 497 . . 4904 519 1009 808 810 990 722 3785 560 484 . 1885 445 1576 2872 6262 Explosions 20860 | . . . . . . . 44 . . . . . . . . . . . 3311 . . . . . . 2699 . 69 157 1040 . 558 788 12194 Melee . | . . . . . . . . . . . . . . . . . . . . . . . . . . . . . . . . . . . Ramming 144 | . . . 22 . . . 53 11 . . . . . . 9 . . . . . . . . 24 . 23 . . . . . . 2 . Kinetic 31527 | 7 355 494 1613 206 . 174 4984 1976 1015 2792 . 3369 648 581 1978 1329 2223 . 1968 302 924 852 685 . 48 190 . . . 353 . 519 953 989 Thermal 49391 | 25 724 777 2807 369 . 393 42 . . . . . . . . . . . 4904 519 1009 808 810 333 722 6259 560 553 157 2925 445 2134 3660 18456 Explosive 3320 | . . . . . . . . . . . . . . . . . . . 3311 . . . . . . 9 . . . . . . . . Electromagnetic 441 | . . . . . . . 441 . . . . . . . . . . . . . . . . . . . . . . . . . . . Impact . | . . . . . . . . . . . . . . . . . . . . . . . . . . . . . . . . . . . Slashing . | . . . . . . . . . . . . . . . . . . . . . . . . . . . . . . . . . . . Piercing . | . . . . . . . . . . . . . . . . . . . . . . . . . . . . . . . . . . . Entropic 2403 | . . . . . . . . . . . . . . . . . . . . . . . . 1795 . 608 . . . . . . . . Phasic 6759 | . . . . . . . . . . . . . . . . . . . 6336 423 . . . . . . . . . . . . . . Highest Corruption 4 | . 1 1 3 3 3 3 2 1 . . . . . . . . . . . . . . . . . 1 . . . . . . . 4 Average Corruption 2 | . 1 1 3 3 3 3 1 1 . . . . . . . . . . . . . . . . . 1 . . . . . . . 3 Corruption Purged 5 | . . . . . . . . 2 . . . . . . . . . . . . . . . . . 2 . . . . . . . 1 Effects 67 | . 3 4 1 10 10 12 23 . . . . . . . . . . . . . . . . . . 1 . . . . . . . 3 Message Errors 17 | . 1 2 . 2 2 1 8 . . . . . . . . . . . . . . . . . . . . . . . . . . 1 Matter Fused 14 | . . . 1 4 3 6 . . . . . . . . . . . . . . . . . . . . . . . . . . . . Heat Flow Errors 6 | . . . . . 2 . 3 . . . . . . . . . . . . . . . . . . . . . . . . . . 1 Energy Discharges 6 | . 1 . . . 1 3 1 . . . . . . . . . . . . . . . . . . . . . . . . . . . Data Loss (minor) 11 | . 1 1 . 1 2 2 4 . . . . . . . . . . . . . . . . . . . . . . . . . . . Targeting Errors 11 | . . 1 . 3 . . 5 . . . . . . . . . . . . . . . . . . 1 . . . . . . . 1 Weapon Failures 2 | . . . . . . . 2 . . . . . . . . . . . . . . . . . . . . . . . . . . . Overload Shots . | . . . . . . . . . . . . . . . . . . . . . . . . . . . . . . . . . . . Overflow Damage 1423 | . . 25 29 11 . 3 12 . . . . . . . 37 33 . . 166 6 75 59 43 47 32 360 48 18 . 148 . 79 60 132 Projectiles 1222 | . . 25 29 11 . 3 12 . . . . . . . 37 33 . . 64 6 75 59 43 47 32 332 48 18 . 140 . 79 60 69 Explosions 201 | . . . . . . . . . . . . . . . . . . . 102 . . . . . . 28 . . . 8 . . . 63 Melee . | . . . . . . . . . . . . . . . . . . . . . . . . . . . . . . . . . . . Knockbacks 11 | . . . . . . . . . . . . . . . 6 5 . . . . . . . . . . . . . . . . . . Impact . | . . . . . . . . . . . . . . . . . . . . . . . . . . . . . . . . . . . Kinetic 9 | . . . . . . . . . . . . . . . 6 3 . . . . . . . . . . . . . . . . . . Secondary 2 | . . . . . . . . . . . . . . . . 2 . . . . . . . . . . . . . . . . . . Self-Inflicted Damage 1389 | . . . . . . . 30 . . . . . . . . . . . . . . . . . . 134 . . 70 . . 5 33 1117 Shots 139 | . . . . . . . 2 . . . . . . . . . . . . . . . . . . 8 . . 10 . . 1 4 114 Rammed 18 | . . . 7 . . . 3 2 . . . . . . 2 . . . . . . . . 2 . 1 . . . . . . 1 . Targets Rammed 19 | . . . 7 . . . 4 2 . . . . . . 2 . . . . . . . . 2 . 1 . . . . . . 1 . Kicked . | . . . . . . . . . . . . . . . . . . . . . . . . . . . . . . . . . . . Crushed 1 | . . . . . . . 1 . . . . . . . . . . . . . . . . . . . . . . . . . . . Highest Temperature 441 | 30 87 56 214 123 182 141 320 93 191 198 . 197 126 174 199 198 192 . 302 378 105 261 176 380 4 441 . 186 236 296 . 364 338 373 Average Temperature 86 | 18 27 21 48 38 94 50 55 26 72 89 . 93 56 54 69 97 87 . 116 139 36 116 57 179 4 155 . 123 123 151 . 149 152 129 Received Heat Transfer 6142 | . 336 459 720 108 . 117 818 131 88 228 . 510 43 . 213 118 125 . 551 37 10 108 28 136 38 394 . 13 . 85 . 97 94 537 Effects 17 | . . . . . . . . . . . . . . . . . . . 1 2 . . . 2 . 6 . . . . . . . 6 Energy Bleed 4 | . . . . . . . . . . . . . . . . . . . 1 . . . . 1 . 1 . . . . . . . 1 Interference 8 | . . . . . . . . . . . . . . . . . . . . . . . . . . 3 . . . . . . . 5 Short Circuit 3 | . . . . . . . . . . . . . . . . . . . . 1 . . . 1 . 1 . . . . . . . . Damage (minor) 2 | . . . . . . . . . . . . . . . . . . . . 1 . . . . . 1 . . . . . . . . Siege Activations 42 | . . . . . . . . . . . . . . . . . 1 . 6 3 3 2 2 . 1 7 . . 1 3 . 3 6 4 Total Turns 932 | . . . . . . . . . . . . . . . . . 18 . 231 36 21 36 28 . 20 133 . . 12 36 . 41 83 237 Longest Duration 142 | . . . . . . . . . . . . . . . . . 18 . 142 21 10 18 18 . 20 63 . . 12 18 . 30 23 74 Robots Corrupted . | . . . . . . . . . . . . . . . . . . . . . . . . . . . . . . . . . . . Combat Hostiles . | . . . . . . . . . . . . . . . . . . . . . . . . . . . . . . . . . . . Parts Fried . | . . . . . . . . . . . . . . . . . . . . . . . . . . . . . . . . . . . Impact Corruptions . | . . . . . . . . . . . . . . . . . . . . . . . . . . . . . . . . . . . Robots Melted 101 | . . . . . . . . . . . . . . . . . . . . . . . . . . 23 . 1 2 9 . 3 7 56 Combat Hostiles 94 | . . . . . . . . . . . . . . . . . . . . . . . . . . 20 . . 2 9 . 3 7 53 Parts Melted 384 | . 2 2 6 . . 1 . . . . . . . . . . . . . . . . . . 3 88 . 2 5 31 . 9 25 210 Heat Transferred 136958 | 74 2035 1628 4940 629 . 666 50 . . . . . . . . . . . 2950 275 500 425 425 174 425 21034 275 625 960 8236 200 4072 7341 79019 Parts Sabotaged . | . . . . . . . . . . . . . . . . . . . . . . . . . . . . . . . . . . . Parts Stolen . | . . . . . . . . . . . . . . . . . . . . . . . . . . . . . . . . . . . Parts Stripped . | . . . . . . . . . . . . . . . . . . . . . . . . . . . . . . . . . . . Power Chain Reactions 1 | . . . . . . . 1 . . . . . . . . . . . . . . . . . . . . . . . . . . . Missiles Intercepted . | . . . . . . . . . . . . . . . . . . . . . . . . . . . . . . . . . . . Alert | -11 -10 -10 -9 -9 -9 -8 -8 -7 -7 -7 -7 -6 -6 -6 -6 -6 -6 -6 -6 -5 -5 -5 -5 -5 -4 -4 -4 -4 -4 -4 -4 -3 -3 -3 ------- Run | Scr Mat Min Mat Min Exi Min Mat Fac Low Low Dat Pro Fac Was Fac Low Low Zio Dee Pro Fac Upp Upp War Pro Fac Was Fac Upp Upp Zhi Pro Res Qua Peak Influence 4268 | 10 356 491 1298 652 . 95 833 306 . . . . 156 37 987 . . . . . 177 . . . . 1345 472 305 . . . . 954 4268 Average Influence 459 | 3 211 323 683 566 . 50 309 199 . . . . 95 22 385 . . . . . 90 . . . . 638 391 249 . . . . 547 2676 Maximum Alert Level 5 | . 1 2 4 2 . . 3 1 . . . . . . 3 . . . . . . . . . . 4 2 1 . . . . 3 5 Low Security (%) 32 | 100 35 5 7 . . 100 41 42 . . . . 100 100 22 . . . . . 100 . . . . 26 . 12 . . . . 3 . Level 1 23 | . 64 75 17 . . . 21 57 . . . . . . 12 . . . . . . . . . . . 40 87 . . . . 35 . Level 2 28 | . . 19 30 100 . . 34 . . . . . . . 65 . . . . . . . . . . 28 59 . . . . . 33 . Level 3 8 | . . . 28 . . . 3 . . . . . . . . . . . . . . . . . . 25 . . . . . . 28 . Level 4 3 | . . . 17 . . . . . . . . . . . . . . . . . . . . . . 20 . . . . . . . . Level 5 . | . . . . . . . . . . . . . . . . . . . . . . . . . . . . . . . . . . . High Security . | . . . . . . . . . . . . . . . . . . . . . . . . . . . . . . . . . . . Max Security 3 | . . . . . . . . . . . . . . . . . . . . . . . . . . . . . . . . . . 99 Squads Dispatched 98 | . 5 1 11 . . 1 8 3 . 1 . 1 3 . 10 . . . . . 1 . . . . 14 . . . 1 . 1 7 30 Investigation 22 | . 3 1 3 . . 1 4 . . . . . 1 . 4 . . . . . . . . . . 2 . . . . . . 3 . Extermination 12 | . . . . . . . . 2 . . . . . . 4 . . . . . 1 . . . . 3 . . . . . . 2 . Reinforcement 17 | . 2 . 5 . . . . 1 . . . . 2 . 1 . . . . . . . . . . 6 . . . . . . . . Assault 42 | . . . 3 . . . 2 . . 1 . 1 . . 1 . . . . . . . . . . . . . . 1 . 1 2 30 Garrison 5 | . . . . . . . 2 . . . . . . . . . . . . . . . . . . 3 . . . . . . . . Intercept . | . . . . . . . . . . . . . . . . . . . . . . . . . . . . . . . . . . . Construction Impeded 5 | . . . 1 . . . . . . . . . . . 1 . . . . . . . . . . 3 . . . . . . . . Haulers Reinforced 5 | . . . . . . . . 1 . . . . 1 . . . . . . . . . . . . 3 . . . . . . . . Stealth | -11 -10 -10 -9 -9 -9 -8 -8 -7 -7 -7 -7 -6 -6 -6 -6 -6 -6 -6 -6 -5 -5 -5 -5 -5 -4 -4 -4 -4 -4 -4 -4 -3 -3 -3 --------- Run | Scr Mat Min Mat Min Exi Min Mat Fac Low Low Dat Pro Fac Was Fac Low Low Zio Dee Pro Fac Upp Upp War Pro Fac Was Fac Upp Upp Zhi Pro Res Qua Distress Signals 19 | . 2 . 5 . . . 3 1 . . . . . . 1 . . . . . 1 . . . . 5 . . . . . . . 1 Communications Jammed 297 | . . . . . . . . . . . . . . . . . . . . . . . . . . . . . . 1 . 7 20 269 Distress Signals 297 | . . . . . . . . . . . . . . . . . . . . . . . . . . . . . . 1 . 7 20 269 Times Spotted 912 | . 23 21 96 6 . 7 69 26 13 30 . 30 5 1 29 10 20 . 90 9 13 9 7 33 3 67 . 4 2 36 . 25 43 185 Peak Tracking Total 34 | . 4 5 6 3 . 4 8 3 4 7 . 6 5 1 4 7 4 . 34 4 4 5 3 20 3 12 . 3 2 11 . 6 6 29 Tactical Retreats 39 | . . . 9 . . . 2 . . 5 . 1 1 . . . 1 . 7 . 1 1 . 2 . 4 . . . . . . 1 4 Traps | -11 -10 -10 -9 -9 -9 -8 -8 -7 -7 -7 -7 -6 -6 -6 -6 -6 -6 -6 -6 -5 -5 -5 -5 -5 -4 -4 -4 -4 -4 -4 -4 -3 -3 -3 ------- Run | Scr Mat Min Mat Min Exi Min Mat Fac Low Low Dat Pro Fac Was Fac Low Low Zio Dee Pro Fac Upp Upp War Pro Fac Was Fac Upp Upp Zhi Pro Res Qua Traps Triggered 16 | . 2 . 2 . . . 2 2 . . . . 1 . 2 . . . . . . . . . . 1 . 2 . . . . 1 1 Indirectly . | . . . . . . . . . . . . . . . . . . . . . . . . . . . . . . . . . . . Trap Hack Attempts . | . . . . . . . . . . . . . . . . . . . . . . . . . . . . . . . . . . . Triggered . | . . . . . . . . . . . . . . . . . . . . . . . . . . . . . . . . . . . Disarmed . | . . . . . . . . . . . . . . . . . . . . . . . . . . . . . . . . . . . Reprogrammed . | . . . . . . . . . . . . . . . . . . . . . . . . . . . . . . . . . . . Reused . | . . . . . . . . . . . . . . . . . . . . . . . . . . . . . . . . . . . Traps Extracted . | . . . . . . . . . . . . . . . . . . . . . . . . . . . . . . . . . . . Installed . | . . . . . . . . . . . . . . . . . . . . . . . . . . . . . . . . . . . Triggered 11 | . . . . . . . . . . . . . . . . 1 . . . . . . . 10 . . . . . . . . . . Exploded 1 | . . . . . 1 . . . . . . . . . . . . . . . . . . . . . . . . . . . . . Machines | -11 -10 -10 -9 -9 -9 -8 -8 -7 -7 -7 -7 -6 -6 -6 -6 -6 -6 -6 -6 -5 -5 -5 -5 -5 -4 -4 -4 -4 -4 -4 -4 -3 -3 -3 ---------- Run | Scr Mat Min Mat Min Exi Min Mat Fac Low Low Dat Pro Fac Was Fac Low Low Zio Dee Pro Fac Upp Upp War Pro Fac Was Fac Upp Upp Zhi Pro Res Qua Machines Disabled 32 | . . . 3 . . . 4 1 . . . 1 . . 4 1 . . 4 . . 1 1 . . 2 . 1 . 2 1 . 4 2 Max in Single Turn 2 | . . . 1 . . . 1 1 . . . . . . 1 1 . . 1 . . 1 1 . . 2 . 1 . 1 1 . 2 1 Garrison Access 6 | . . . . . . . 1 2 . . . . . . 1 . . . . . 1 . . . . . . . . . . . 1 . Machines Sabotaged . | . . . . . . . . . . . . . . . . . . . . . . . . . . . . . . . . . . . Garrisons Compromised . | . . . . . . . . . . . . . . . . . . . . . . . . . . . . . . . . . . . Overloaded Fab Kills . | . . . . . . . . . . . . . . . . . . . . . . . . . . . . . . . . . . . Fab Network Shutdowns 2 | . . . . . . . . . . . . . . . 1 . . . . . . . . . . 1 . . . . . . . . Hacking | -11 -10 -10 -9 -9 -9 -8 -8 -7 -7 -7 -7 -6 -6 -6 -6 -6 -6 -6 -6 -5 -5 -5 -5 -5 -4 -4 -4 -4 -4 -4 -4 -3 -3 -3 --------- Run | Scr Mat Min Mat Min Exi Min Mat Fac Low Low Dat Pro Fac Was Fac Low Low Zio Dee Pro Fac Upp Upp War Pro Fac Was Fac Upp Upp Zhi Pro Res Qua Machines Accessed 83 | . 6 1 8 . 2 1 10 6 1 . 4 . 6 . 6 1 2 1 . . 3 . . 3 . 2 . 2 2 1 8 . 7 . Terminals 33 | . 5 1 6 . . 1 7 3 . . . . 1 . 1 . . . . . 1 . . . . 1 . 2 . . . . 4 . Fabricators 3 | . . . . . . . . . . . . . . . 1 . . . . . . . . . . 1 . . . . . . 1 . Repair Stations 6 | . . . . . . . 1 . . . . . 3 . 2 . . . . . . . . . . . . . . . . . . . Recycling Units 3 | . 1 . . . . . 1 . . . . . 1 . . . . . . . . . . . . . . . . . . . . . Scanalyzers 6 | . . . 2 . . . . 1 . . . . 1 . . . . . . . 1 . . . . . . . . . . . 1 . Garrison Access 7 | . . . . . . . 1 2 . . . . . . 2 . . . . . 1 . . . . . . . . . . . 1 . Total Hacks 315 | . 25 8 30 . 2 4 47 19 1 . 33 . 17 . 21 1 3 3 . . 8 . . 4 . 7 . 3 5 1 47 . 26 . Successful 225 | . 13 3 23 . 2 3 28 13 1 . 33 . 11 . 10 1 3 3 . . 3 . . 4 . 2 . 1 5 1 47 . 15 . Failed 86 | . 12 4 6 . . . 18 6 . . . . 6 . 11 . . . . . 5 . . . . 5 . 2 . . . . 11 . Catastrophic 15 | . 1 1 1 . . . 3 2 . . . . . . 3 . . . . . 1 . . . . 1 . 2 . . . . . . Database Lockouts 5 | . . 1 2 . . 1 1 . . . . . . . . . . . . . . . . . . . . . . . . . . . Manual 103 | . 17 8 21 . 1 5 26 8 . . . . 4 . 1 . . 1 . . 3 . . 1 . . . 1 . . . . 6 . Terminals 150 | . 23 8 24 . . 4 40 14 . . . . 4 . 2 . . . . . 4 . . . . 4 . 3 . . . . 20 . Fabricators 11 | . . . . . . . . . . . . . . . 6 . . . . . . . . . . 3 . . . . . . 2 . Repair Stations 19 | . . . . . . . 2 . . . . . 9 . 8 . . . . . . . . . . . . . . . . . . . Recycling Units 7 | . 2 . . . . . 3 . . . . . 2 . . . . . . . . . . . . . . . . . . . . . Scanalyzers 16 | . . . 6 . . . . 3 . . . . 2 . . . . . . . 2 . . . . . . . . . . . 3 . Garrison Access 12 | . . . . . . . 2 2 . . . . . . 5 . . . . . 2 . . . . . . . . . . . 1 . Terminal Hacks 165 | . 9 3 15 . 2 2 16 8 1 . 33 . 2 . . 1 3 3 . . 2 . . 4 . 1 . 1 5 1 47 . 6 . Record 55 | . . . . . 1 . . . . . 11 . . . . . 2 . . . . . . 2 . . . . 4 . 35 . . . Part Schematic 25 | . 1 1 2 . . 1 . . . . 12 . . . . . . 3 . . 1 . . . . . . . . . 4 . . . Robot Schematic 8 | . 1 . . . . . . . . . 7 . . . . . . . . . . . . . . . . . . . . . . . Robot Analysis 22 | . 4 . 6 . . . 3 3 . . . . 1 . . . . . . . . . . . . . . . . . 4 . 1 . Prototype ID Bank 12 | . . . . . . . 2 1 . . 3 . . . . . . . . . . . . . . . . . . . 4 . 2 . Open Door 7 | . . . . . . . . . 1 . . . . . . 1 1 . . . . . . 2 . . . . 1 1 . . . . Level Access Points 1 | . . . 1 . . . . . . . . . . . . . . . . . . . . . . . . . . . . . . . Branch Access Points 6 | . 1 . 1 . . . 1 1 . . . . . . . . . . . . . . . . . . . 1 . . . . 1 . Terminal Index 4 | . . . 1 . . . 1 1 . . . . 1 . . . . . . . . . . . . . . . . . . . . . Fabricator Index 1 | . . . . . . . . 1 . . . . . . . . . . . . . . . . . . . . . . . . . . Garrison Index 1 | . . . . . . . 1 . . . . . . . . . . . . . . . . . . . . . . . . . . . Alert Level 2 | . . . . . . 1 . . . . . . . . . . . . . . . . . . . . . . . . . . 1 . Unreport Threat 5 | . . 1 . . . . 3 . . . . . . . . . . . . . . . . . . 1 . . . . . . . . Locate Traps 4 | . . . 1 . . . 2 1 . . . . . . . . . . . . . . . . . . . . . . . . . . Recall Investigation 4 | . . 1 2 . . . 1 . . . . . . . . . . . . . . . . . . . . . . . . . . . Hauler Manifests 3 | . 1 . . . . . 1 . . . . . . . . . . . . . 1 . . . . . . . . . . . . . Registered Components 1 | . . . 1 . . . . . . . . . . . . . . . . . . . . . . . . . . . . . . . Zone Layout 3 | . 1 . . . . . 1 . . . . . . . . . . . . . . . . . . . . . . . . . 1 . EX-Prototype ID Bank 1 | . . . . . 1 . . . . . . . . . . . . . . . . . . . . . . . . . . . . . Fabricator Hacks 5 | . . . . . . . . . . . . . . . 2 . . . . . . . . . . 1 . . . . . . 2 . Load Schematic 2 | . . . . . . . . . . . . . . . 1 . . . . . . . . . . . . . . . . . 1 . Build 3 | . . . . . . . . . . . . . . . 1 . . . . . . . . . . 1 . . . . . . 1 . Repair Station Hacks 14 | . . . . . . . 2 . . . . . 5 . 7 . . . . . . . . . . . . . . . . . . . Scan Component 8 | . . . . . . . 1 . . . . . 3 . 4 . . . . . . . . . . . . . . . . . . . Repair 6 | . . . . . . . 1 . . . . . 2 . 3 . . . . . . . . . . . . . . . . . . . Recycling Unit Hacks 4 | . 1 . . . . . 2 . . . . . 1 . . . . . . . . . . . . . . . . . . . . . Report Inventory 3 | . 1 . . . . . 1 . . . . . 1 . . . . . . . . . . . . . . . . . . . . . Retrieve Components 1 | . . . . . . . 1 . . . . . . . . . . . . . . . . . . . . . . . . . . . Scanalyzer 13 | . . . 6 . . . . 2 . . . . 2 . . . . . . . . . . . . . . . . . . . 3 . Insert Component 6 | . . . 3 . . . . 1 . . . . 1 . . . . . . . . . . . . . . . . . . . 1 . Analyze 7 | . . . 3 . . . . 1 . . . . 1 . . . . . . . . . . . . . . . . . . . 2 . Garrison Access Hacks 6 | . . . . . . . 1 2 . . . . . . 1 . . . . . 1 . . . . . . . . . . . 1 . Seal Access 6 | . . . . . . . 1 2 . . . . . . 1 . . . . . 1 . . . . . . . . . . . 1 . Unauthorized Hacks 18 | . 3 . 2 . . 1 7 1 . . . . 1 . . . . . . . . . . . . . . . . . . . 3 . Terminals 16 | . 2 . 2 . . 1 6 1 . . . . 1 . . . . . . . . . . . . . . . . . . . 3 . Track 4 | . . . . . . 1 2 . . . . . . . . . . . . . . . . . . . . . . . . . 1 . Assimilate 1 | . . . . . . . 1 . . . . . . . . . . . . . . . . . . . . . . . . . . . Botnet 9 | . 1 . 2 . . . 3 1 . . . . 1 . . . . . . . . . . . . . . . . . . . 1 . Operators 2 | . 1 . . . . . . . . . . . . . . . . . . . . . . . . . . . . . . . 1 . Fabricators . | . . . . . . . . . . . . . . . . . . . . . . . . . . . . . . . . . . . Repair Stations . | . . . . . . . . . . . . . . . . . . . . . . . . . . . . . . . . . . . Recycling Units 2 | . 1 . . . . . 1 . . . . . . . . . . . . . . . . . . . . . . . . . . . Tunnel 2 | . 1 . . . . . 1 . . . . . . . . . . . . . . . . . . . . . . . . . . . Scanalyzers . | . . . . . . . . . . . . . . . . . . . . . . . . . . . . . . . . . . . Garrison Access . | . . . . . . . . . . . . . . . . . . . . . . . . . . . . . . . . . . . Data Cores Recovered 4 | . . . . . . . . 1 . . . . . . . . . . . . 1 . . . . . . 1 . . . . 1 . Used 1 | . . . . . . . . 1 . . . . . . . . . . . . . . . . . . . . . . . . . . Hacking Detections 50 | . 5 1 8 . . . 9 4 . . . . 5 . 5 . . . . . 3 . . . . 2 . 2 . . . . 6 . Full Trace Events 15 | . 3 1 . . . . 4 . . . . . 1 . 2 . . . . . . . . . . 1 . . . . . . 3 . Feedback Events 1 | . 1 . . . . . . . . . . . . . . . . . . . . . . . . . . . . . . . . . Corruption 1 | . 1 . . . . . . . . . . . . . . . . . . . . . . . . . . . . . . . . . Feedback Blocked . | . . . . . . . . . . . . . . . . . . . . . . . . . . . . . . . . . . . Robot Schematics Acquired 8 | . 1 . . . . . . . . . 7 . . . . . . . . . . . . . . . . . . . . . . . Robots Built . | . . . . . . . . . . . . . . . . . . . . . . . . . . . . . . . . . . . Matter . | . . . . . . . . . . . . . . . . . . . . . . . . . . . . . . . . . . . Time . | . . . . . . . . . . . . . . . . . . . . . . . . . . . . . . . . . . . Total Robot Build Rating . | . . . . . . . . . . . . . . . . . . . . . . . . . . . . . . . . . . . Part Schematics Acquired 31 | . 1 1 5 . . 1 . 1 . . 12 . 1 . . . . 3 . . 1 . . . . . . . . . 4 . 1 . Parts Built 4 | . . . . . . . . . . . . . . . 1 . . . . . . . . . . 2 . . . . . . 1 . Matter 848 | . . . . . . . . . . . . . . . 285 . . . . . . . . . . 278 . . . . . . 285 . Time 367 | . . . . . . . . . . . . . . . 152 . . . . . . . . . . 139 . . . . . . 76 . Total Part Build Rating 28 | . . . . . . . . . . . . . . . 5 . . . . . . . . . . 18 . . . . . . 5 . Parts Repaired 6 | . . . . . . . 1 . . . . . 2 . 3 . . . . . . . . . . . . . . . . . . . Time 254 | . . . . . . . 38 . . . . . 38 . 178 . . . . . . . . . . . . . . . . . . . Parts Recycled . | . . . . . . . . . . . . . . . . . . . . . . . . . . . . . . . . . . . Recycled Matter . | . . . . . . . . . . . . . . . . . . . . . . . . . . . . . . . . . . . Retrieved Matter . | . . . . . . . . . . . . . . . . . . . . . . . . . . . . . . . . . . . Retrieved Components 3 | . . . . . . . 3 . . . . . . . . . . . . . . . . . . . . . . . . . . . Parts Scanalyzed 6 | . . . 3 . . . . 1 . . . . 1 . . . . . . . . . . . . . . . . . . . 1 . Part Schematics Acquired 6 | . . . 3 . . . . 1 . . . . 1 . . . . . . . . . . . . . . . . . . . 1 . Parts Damaged 1 | . . . . . . . . . . . . . . . . . . . . . . . . . . . . . . . . . 1 . Bothacking | -11 -10 -10 -9 -9 -9 -8 -8 -7 -7 -7 -7 -6 -6 -6 -6 -6 -6 -6 -6 -5 -5 -5 -5 -5 -4 -4 -4 -4 -4 -4 -4 -3 -3 -3 ------------ Run | Scr Mat Min Mat Min Exi Min Mat Fac Low Low Dat Pro Fac Was Fac Low Low Zio Dee Pro Fac Upp Upp War Pro Fac Was Fac Upp Upp Zhi Pro Res Qua Used RIF Installer . | . . . . . . . . . . . . . . . . . . . . . . . . . . . . . . . . . . . Robots Hacked 3 | . . . . . 3 . . . . . . . . . . . . . . . . . . . . . . . . . . . . . Non-combat 2 | . . . . . 2 . . . . . . . . . . . . . . . . . . . . . . . . . . . . . Combat 1 | . . . . . 1 . . . . . . . . . . . . . . . . . . . . . . . . . . . . . Robot Hacks Applied 4 | . . . . . 4 . . . . . . . . . . . . . . . . . . . . . . . . . . . . . parse_system 4 | . . . . . 4 . . . . . . . . . . . . . . . . . . . . . . . . . . . . . Relay Couplers Released . | . . . . . . . . . . . . . . . . . . . . . . . . . . . . . . . . . . . Robots Rewired 15 | . . . . . . . . . . 2 . 1 . . . 2 . . . . . 1 . 1 . . . . . 6 . 2 . . Allies Hacked 3 | . . . . . . . . . . . . . . . 2 . . . . . . . . . . . . . . 1 . . . . Hacks Repelled . | . . . . . . . . . . . . . . . . . . . . . . . . . . . . . . . . . . . Allies | -11 -10 -10 -9 -9 -9 -8 -8 -7 -7 -7 -7 -6 -6 -6 -6 -6 -6 -6 -6 -5 -5 -5 -5 -5 -4 -4 -4 -4 -4 -4 -4 -3 -3 -3 -------- Run | Scr Mat Min Mat Min Exi Min Mat Fac Low Low Dat Pro Fac Was Fac Low Low Zio Dee Pro Fac Upp Upp War Pro Fac Was Fac Upp Upp Zhi Pro Res Qua Total Allies 45 | . . . . . . . 1 2 . 2 . 2 . 20 . 2 . 5 1 . . 1 . 1 . . . . . 6 . 2 . . Largest Group 20 | . . . . . . . 1 2 . 2 1 2 . 20 16 2 1 5 6 . . 1 1 1 . . . . . 5 3 2 2 . Highest-Rated Group 771 | . . . . . . . 26 62 . 32 13 114 . 771 632 58 29 107 225 . . 29 20 60 . . . . . 223 121 112 112 . Highest-Rated Ally 118 | . . . . . . . 26 31 . 16 13 94 . 50 50 29 29 28 118 . . 29 20 60 . . . . . 47 46 64 64 . Total Orders 6 | . . . . . . . . . . . . . . . . . . . . . . . . 4 . 2 . . . . . . . . GOTO 3 | . . . . . . . . . . . . . . . . . . . . . . . . 3 . . . . . . . . . . FOLLOW 1 | . . . . . . . . . . . . . . . . . . . . . . . . 1 . . . . . . . . . . EXPLORE 2 | . . . . . . . . . . . . . . . . . . . . . . . . . . 2 . . . . . . . . Ally Attacks 344 | . . . . . . . . 19 . 6 . 30 . 16 108 10 14 . 55 . . 4 . . . . . . . 59 . . 23 . Total Damage 11744 | . . . . . . . . 241 . 80 . 815 . 1318 2894 154 188 . 3723 . . 58 . . . . . . . 1646 . . 627 . Kills 65 | . . . . . . . . 3 . 1 . 5 . 4 19 . 2 . 17 . . 1 . . . . . . . 7 . . 6 . Allies Corrupted 3 | . . . . . . . . 1 . . . . . . 2 . . . . . . . . . . . . . . . . . . . Allies Melted . | . . . . . . . . . . . . . . . . . . . . . . . . . . . . . . . . . . . Intel | -11 -10 -10 -9 -9 -9 -8 -8 -7 -7 -7 -7 -6 -6 -6 -6 -6 -6 -6 -6 -5 -5 -5 -5 -5 -4 -4 -4 -4 -4 -4 -4 -3 -3 -3 ------- Run | Scr Mat Min Mat Min Exi Min Mat Fac Low Low Dat Pro Fac Was Fac Low Low Zio Dee Pro Fac Upp Upp War Pro Fac Was Fac Upp Upp Zhi Pro Res Qua Robot Analysis Total 22 | . 4 . 6 . . . 3 3 . . . . 1 . . . . . . . . . . . . . . . . . 4 . 1 . Derelict Logs Recovered 20 | . . 1 . . . . . . 2 1 . 2 . . . . 2 3 . 1 . 2 1 . 2 . . . 1 2 . . . . Drone Launches 8 | . . . . . . . . . . . . . . . . . . . . . . . . 6 2 . . . . . . . . . Drone Recoveries . | . . . . . . . . . . . . . . . . . . . . . . . . . . . . . . . . . . . Decoded 0b10 Intel 19 | . . . . . . . . . . . . . . . . . . . . . 10 . . . . 9 . . . . . . . . Traps 13 | . . . . . . . . . . . . . . . . . . . . . 6 . . . . 7 . . . . . . . . Emergency Access 6 | . . . . . . . . . . . . . . . . . . . . . 4 . . . . 2 . . . . . . . . Exploration | -11 -10 -10 -9 -9 -9 -8 -8 -7 -7 -7 -7 -6 -6 -6 -6 -6 -6 -6 -6 -5 -5 -5 -5 -5 -4 -4 -4 -4 -4 -4 -4 -3 -3 -3 ------------- Run | Scr Mat Min Mat Min Exi Min Mat Fac Low Low Dat Pro Fac Was Fac Low Low Zio Dee Pro Fac Upp Upp War Pro Fac Was Fac Upp Upp Zhi Pro Res Qua Turns Passed 39031 | 66 551 800 2407 376 458 709 2064 1341 1354 1097 164 1769 691 709 2622 1230 1674 2704 4080 699 683 626 801 1229 399 1166 668 374 601 1575 634 717 1337 656 Spaces Moved 17527 | 39 374 585 1015 197 265 403 818 591 672 445 87 795 311 336 1255 626 811 1370 1114 333 316 294 404 626 198 412 363 185 322 729 281 266 557 132 Core 15 | 12 . . . . . . . . . . . . . . . . . . 2 . . . . 1 . . . . . . . . . . Treads 16597 | 26 . 73 992 197 265 403 818 591 672 445 87 795 311 336 1255 626 811 1370 1107 333 316 294 404 625 198 412 363 185 322 729 281 266 557 132 Legs 5 | . . . . . . . . . . . . . . . . . . . 5 . . . . . . . . . . . . . . . Wheels 910 | 1 374 512 23 . . . . . . . . . . . . . . . . . . . . . . . . . . . . . . . Hover . | . . . . . . . . . . . . . . . . . . . . . . . . . . . . . . . . . . . Flight . | . . . . . . . . . . . . . . . . . . . . . . . . . . . . . . . . . . . Fastest Speed 50 | 50 80 80 90 160 160 160 160 190 190 190 190 190 190 180 180 180 180 180 160 180 180 180 180 180 180 165 160 180 180 180 190 190 190 190 Average Speed 175 | 124 80 98 158 160 160 160 187 190 190 190 190 190 190 185 180 180 180 180 180 180 180 180 180 181 180 170 177 180 180 183 190 190 190 190 Slowest Speed 850 | 160 80 160 160 160 160 160 190 190 190 190 190 190 190 210 180 180 180 180 800 180 180 180 180 850 180 180 180 180 180 190 190 190 190 190 Overloaded Moves . | . . . . . . . . . . . . . . . . . . . . . . . . . . . . . . . . . . . Propulsion Burnouts . | . . . . . . . . . . . . . . . . . . . . . . . . . . . . . . . . . . . Robots Hopped . | . . . . . . . . . . . . . . . . . . . . . . . . . . . . . . . . . . . Cave-ins Triggered . | . . . . . . . . . . . . . . . . . . . . . . . . . . . . . . . . . . . Teleports 1 | . . . . . . . . . . . . . . . . . . . . . . . . . . . . . . . 1 . . . Exploration Rate (%) 59 | 4 70 98 82 55 61 88 63 18 89 66 72 90 10 95 30 80 84 86 85 65 10 69 64 82 40 21 97 8 55 87 84 51 14 17 Regions Visited 34 Branch Regions 22 Pre-discovered Areas 20 | . 1 1 . . 1 . 1 . 2 . 1 1 . . . . . 4 . 1 . . 1 . 1 . . . 1 1 3 . . . Known Exits Taken 12 | . 1 . 1 . . 1 . 1 . . . 1 . . 1 . 1 . . . 1 . . . 1 . . 1 . . . 1 1 . Unknown Exits Taken 18 | 1 . 1 . 1 1 . 1 . 1 1 1 . . . . 1 . 1 1 1 . 1 1 1 . . . . 1 1 1 . . . Scrap Searched 34 | . . 1 . . . 1 . . 3 3 . 4 . . . 4 2 2 . 3 . 3 1 . 2 . . . 1 4 . . . . Spaces Dug 11 | . . . . . . . . . . . . . . . . . . 2 . . 4 . . 1 . . . 2 . 1 . . 1 . Terrain Destroyed 166 | . . . . . . . 14 1 2 3 . 1 1 3 8 3 4 2 13 13 11 7 10 9 6 26 1 2 . 9 . 7 4 6 Melee 2 | . . . . . . . . . . . . . . . . . . 2 . . . . . . . . . . . . . . . . Projectile 141 | . . . . . . . 5 1 2 3 . 1 1 3 8 3 4 . 13 13 11 7 10 9 6 12 1 2 . 9 . 7 4 6 AOE 23 | . . . . . . . 9 . . . . . . . . . . . . . . . . . . 14 . . . . . . . . Actions | -11 -10 -10 -9 -9 -9 -8 -8 -7 -7 -7 -7 -6 -6 -6 -6 -6 -6 -6 -6 -5 -5 -5 -5 -5 -4 -4 -4 -4 -4 -4 -4 -3 -3 -3 --------- Run | Scr Mat Min Mat Min Exi Min Mat Fac Low Low Dat Pro Fac Was Fac Low Low Zio Dee Pro Fac Upp Upp War Pro Fac Was Fac Upp Upp Zhi Pro Res Qua Total 23537 | 50 508 708 1483 221 298 429 1121 743 719 603 86 949 402 405 1559 694 955 1557 2867 403 387 354 442 700 223 790 384 221 341 929 376 435 761 434 Wait 2598 | . 26 17 153 2 16 3 53 53 7 5 . 19 57 8 218 13 48 146 1171 33 27 20 11 5 5 173 . 21 14 29 71 18 81 75 Move 17495 | 38 373 584 1014 196 264 402 817 590 671 444 86 794 311 335 1254 625 810 1369 1113 332 315 293 403 625 197 412 362 184 321 728 280 265 556 132 Hop . | . . . . . . . . . . . . . . . . . . . . . . . . . . . . . . . . . . . Pick Up 89 | 2 3 1 11 1 2 1 9 4 3 2 . 3 1 . 3 . 4 3 18 . 1 . . 2 . 3 1 1 . 2 . . 3 5 Fast Attach 136 | 7 2 3 12 . . . 11 5 . 4 . 5 6 8 9 1 . 4 20 2 5 . . 12 1 4 2 1 . 2 7 . 2 1 Attach 28 | . . . 5 . . 1 2 3 . 1 . . . . . . . 1 6 . 1 . . 1 . 2 . . . 2 . 1 . 2 Detach 6 | . . . 1 . . . . 3 . . . . . . . . . . 1 . . . . 1 . . . . . . . . . . Swap 37 | . 3 3 3 1 1 1 8 2 1 . . 1 2 1 2 . . 1 3 . . . . 1 . . 1 . 1 . . . 1 . Drop 230 | 1 5 6 16 1 4 . 22 11 3 4 . 7 8 11 9 1 4 6 56 2 6 . . 15 . 9 6 2 . 2 5 . 4 4 Fire 1581 | 2 66 52 166 19 . 19 102 31 18 53 . 60 8 10 33 21 41 . 327 17 27 21 21 18 19 98 12 12 5 51 10 37 66 139 Melee 30 | . . . . . 4 . . . . . . . . . . . . 26 . . . . . . . . . . . . . . . . Ram . | . . . . . . . . . . . . . . . . . . . . . . . . . . . . . . . . . . . Kick . | . . . . . . . . . . . . . . . . . . . . . . . . . . . . . . . . . . . Crush 19 | . . . 7 . . . 4 2 . . . . . . 2 . . . . . . . . 2 . 1 . . . . . . 1 . Escape Stasis 8 | . . . . . . . . . . . . . . . . . . . . . . . . . . . . . . . . . . 8 Rewire 165 | . . . . . . . . . . 40 . 4 . . . 11 . 1 . . . 8 . 16 . . . . . 13 . 72 . . Trap . | . . . . . . . . . . . . . . . . . . . . . . . . . . . . . . . . . . . Miscellaneous 1115 | . 30 42 95 1 7 2 93 39 16 50 . 56 9 32 29 22 48 . 152 17 5 12 7 2 1 88 . . . 100 3 42 47 68 Route ------- -11/Scrapyard -10/Materials (discovered 3 exits: *Mat x2 / *Min) -10/Mines (discovered 2 exits: *Mat x2) -9/Materials (discovered 6 exits: *Mat x3 / *Min x2 / *Sto) -9/Mines (discovered 2 exits: *Mat / *Exi) -9/Exiles (discovered 2 exits: *Min x2) -8/Mines (discovered 2 exits: *Mat x2) -8/Materials -7/Factory (discovered 2 exits: *Low x2) -7/Lower Caves -7/Lower Caves (discovered 2 exits: *Fac / *Dat) -7/Data Miner -6/Proximity Caves -6/Factory -6/Waste -6/Factory (discovered 2 exits: *Fac / *Low) -6/Lower Caves -6/Lower Caves (discovered 2 exits: *Fac / *Zio) -6/Zion (discovered 2 exits: [*Dee] / [*Pro]) -6/Deep Caves -5/Proximity Caves -5/Factory (discovered 4 exits: Fac x2 / *Upp x2) -5/Upper Caves -5/Upper Caves (discovered 2 exits: *Fac / *War) -5/Warlord -4/Proximity Caves -4/Factory (discovered 2 exits: Res / Upp) -4/Waste -4/Factory (discovered 2 exits: *Upp x2) -4/Upper Caves -4/Upper Caves (discovered 2 exits: *Res / *Zhi) -4/Zhirov -3/Proximity Caves -3/Research (discovered 3 exits: Arm / *Qua x2) -3/Quarantine History --------- Turn | Location | Event 7 | -11/Scrapyard | Discovered new exit (range 15) 9 | -11/Scrapyard | Upgraded with Propulsion slot (x1) 9 | -11/Scrapyard | Upgraded with Utility slot (x1) 9 | -11/Scrapyard | Upgraded with Weapon slot (x1) 67 | -11/Scrapyard | Entered Materials 267 | -10/Materials | Discovered new exit (range 12) 318 | -10/Materials | Build established: Mutant 320 | -10/Materials | Identified exit to Mines 414 | -10/Materials | Reached level 2 417 | -10/Materials | Upgraded with Utility slot (x1) 489 | -10/Materials | Discovered new exit (range 16) 618 | -10/Materials | Entered Mines 636 | -10/Mines | Reached level 3 691 | -10/Mines | Core integrity fell below 50% 818 | -10/Mines | Discovered new exit (range 10) 913 | -10/Mines | Learned location of Storage (-9) 1041 | -10/Mines | A weapon hastily lodged in a ceiling crevice suddenly fell to the ground 1057 | -10/Mines | Discovered new exit (range 5) 1064 | -10/Mines | Received a Rocket Launcher from a helpful Derelict 1111 | -10/Mines | Learned 4 Materials zone layouts 1156 | -10/Mines | Reached level 4 1172 | -10/Mines | Core integrity fell below 20% 1331 | -10/Mines | Central database locked down 1418 | -10/Mines | Entered Materials 1419 | -9/Materials | Identified exit to Materials 1419 | -9/Materials | Identified exit to Storage 1420 | -9/Materials | Reached level 5 1421 | -9/Materials | Upgraded with Utility slot (x2) 1484 | -9/Materials | Build established: Scavenger-Mutant 1599 | -9/Materials | Identified exit to Mines 1650 | -9/Materials | Reached level 6 1694 | -9/Materials | Upgraded with Utility slot (x1) 1942 | -9/Materials | Reached level 7 2323 | -9/Materials | Central database locked down 2468 | -9/Materials | Reached level 8 2893 | -9/Materials | Reached level 9 2909 | -9/Materials | Upgraded with Utility slot (x1) 3018 | -9/Materials | First assault squad dispatched 3825 | -9/Materials | Entered Mines 3967 | -9/Mines | Discovered exit to Materials (range 7) 3997 | -9/Mines | Reached level 10 4180 | -9/Mines | Deemed a non-threat by the Exiles lab entrance 4180 | -9/Mines | Discovered new exit (range 5) 4201 | -9/Mines | Entered Exiles 4230 | -9/Exiles | Discovered new exit (range 16) 4247 | -9/Exiles | Met 8R-AWN 4275 | -9/Exiles | Met EX-HEX 4371 | -9/Exiles | Met EX-BIN 4392 | -9/Exiles | Aligned with FarCom system 4394 | -9/Exiles | Given EX-Vault access code 4431 | -9/Exiles | Opened EX-Vault 4445 | -9/Exiles | Found AWS/Autocannon 4482 | -9/Exiles | Warned to stay clear of 0b10 Research branches 4498 | -9/Exiles | Exiles lab attacked by MAIN.C 4538 | -9/Exiles | Learned location of Zion (-6) 4615 | -9/Exiles | Discovered new exit (range 10) 4659 | -9/Exiles | Left Exiles lab with AWS/Autocannon 4659 | -9/Exiles | Entered Mines 4751 | -8/Mines | Discovered exit to Materials (range 7) 4973 | -8/Mines | Build established: Scavenger-Skirmisher 5097 | -8/Mines | Discovered exit to Materials (range 8) 5109 | -8/Mines | Central database locked down 5219 | -8/Mines | Reached level 11 5368 | -8/Mines | Entered Materials 5435 | -8/Materials | Upgraded with Power slot (x1) 5435 | -8/Materials | Upgraded with Weapon slot (x1) 5568 | -8/Materials | Reached level 12 5830 | -8/Materials | Discovered new exit (range 17) 6046 | -8/Materials | Build established: Tank 6097 | -8/Materials | Repaired Reactive Plating? 6577 | -8/Materials | Reached level 13 6605 | -8/Materials | Upgraded with Utility slot (x1) 6755 | -8/Materials | Central database locked down 6855 | -8/Materials | Garrison activated, responded to threat 6968 | -8/Materials | First assault squad dispatched 7055 | -8/Materials | Destroyed 8 combat bots 7129 | -8/Materials | Garrison activated, responded to threat 7432 | -8/Materials | Entered Factory 7434 | -7/Factory | Reached level 14 7536 | -7/Factory | Identified exit to Lower Caves 7968 | -7/Factory | Allied Derelicts emerged from ambush trap array 8101 | -7/Factory | Reached level 15 8104 | -7/Factory | Upgraded with Utility slot (x1) 8773 | -7/Factory | Entered Lower Caves 9086 | -7/Lower Caves | Encountered a Warlord checkpoint 9605 | -7/Lower Caves | Spotted B-75 Beast 9657 | -7/Lower Caves | Destroyed B-75 Beast 9689 | -7/Lower Caves | Discovered new exit (range 17) 9725 | -7/Lower Caves | Reached level 16 10127 | -7/Lower Caves | Entered another Lower Caves area 10139 | -7/Lower Caves | Discovered new exit (range 11) 10196 | -7/Lower Caves | Learned 12 Factory zone layouts 10477 | -7/Lower Caves | Spotted B-75 Beast 10510 | -7/Lower Caves | Core integrity fell below 50% 10520 | -7/Lower Caves | Destroyed B-75 Beast 10841 | -7/Lower Caves | Attracted the attention of an 0b10 outpost 11062 | -7/Lower Caves | Discovered new exit (range 20) 11224 | -7/Lower Caves | Entered Data Miner 11224 | -7/Data Miner | Accompanied by 1 ally 11224 | -7/Data Miner | Discovered new exit (range 6) 11226 | -7/Data Miner | Reached level 17 11259 | -7/Data Miner | Met Data Miner 11269 | -7/Data Miner | Build established: Scavenger-Tank 11308 | -7/Data Miner | Upgraded with Utility slot (x1) 11308 | -7/Data Miner | Learned location of Section 7 (-2) 11308 | -7/Data Miner | Acquired the access code to Warlord's prototype stash 11338 | -7/Data Miner | Received God Mode back door access code from Data Miner 11388 | -7/Data Miner | Entered Proximity Caves 11388 | -6/Proximity Caves | Accompanied by 1 ally 11428 | -6/Proximity Caves | Escorted by Enhanced Grunt 11650 | -6/Proximity Caves | Spotted B-75 Beast 11666 | -6/Proximity Caves | Allies destroyed B-75 Beast 11820 | -6/Proximity Caves | Attracted the attention of an 0b10 outpost 11837 | -6/Proximity Caves | Reached level 18 11970 | -6/Proximity Caves | Learned location of Extension (-6) 12372 | -6/Proximity Caves | Attracted the attention of an 0b10 checkpoint 12414 | -6/Proximity Caves | Identified exit to Factory 13157 | -6/Proximity Caves | Entered Factory 13158 | -6/Factory | Identified exit to Lower Caves 13159 | -6/Factory | Reached level 19 13159 | -6/Factory | Upgraded with Utility slot (x1) 13279 | -6/Factory | Repaired Hrd. Medium Armor Plating 13326 | -6/Factory | Repaired Reactive Plating 13619 | -6/Factory | Build established: Tank 13848 | -6/Factory | Sucked down chute 13848 | -6/Factory | Entered Waste 13849 | -6/Waste | Joined by Warlord forces that had cleared the area 14052 | -6/Waste | Found Broken Imp. Powered Armor 14119 | -6/Waste | Found Damper Plating 14156 | -6/Waste | Found Damper Plating 14298 | -6/Waste | Discovered new exit (range 14) 14370 | -6/Waste | A Compactor rumbled back to life 14370 | -6/Waste | Spotted C-40 Crusher 14372 | -6/Waste | Allies destroyed C-40 Crusher 14418 | -6/Waste | Build established: Scavenger-Tank 14557 | -6/Waste | Entered Factory 14557 | -6/Factory | Accompanied by 16 allies 14676 | -6/Factory | Discovered new exit (range 14) 15150 | -6/Factory | Reached level 20 15569 | -6/Factory | Discovered exit to Lower Caves (range 16) 15575 | -6/Factory | Incoming investigation squad redirected 15607 | -6/Factory | First assault squad dispatched 15624 | -6/Factory | Incoming assault squad redirected 15771 | -6/Factory | Build established: Hauler-Mutant 16062 | -6/Factory | Incoming investigation squad redirected 16298 | -6/Factory | Repaired Broken Imp. Powered Armor? 16312 | -6/Factory | Repaired Broken Adv. Hardlight Generator? 16502 | -6/Factory | Repaired Broken Lrn. Tractor Beam 16599 | -6/Factory | Build established: Hauler-Tank 16856 | -6/Factory | Fabricated Exp. Terrain Scanner? 17174 | -6/Factory | Local fabrication network quarantined 17179 | -6/Factory | Entered Lower Caves 17184 | -6/Lower Caves | Attracted the attention of an 0b10 outpost 17844 | -6/Lower Caves | Discovered new exit (range 17) 17903 | -6/Lower Caves | Build established: Hauler-Mutant 18395 | -6/Lower Caves | Build established: Hauler-Tank 18409 | -6/Lower Caves | Entered another Lower Caves area 18409 | -6/Lower Caves | Accompanied by 1 ally 18423 | -6/Lower Caves | Reached level 21 18466 | -6/Lower Caves | Identified exit to Zion 18478 | -6/Lower Caves | Discovered new exit (range 20) 18514 | -6/Lower Caves | Learned 12 Factory zone layouts 20083 | -6/Lower Caves | Entered Zion 20116 | -6/Zion | Learned location of 1 exit from Lower Caves 20264 | -6/Zion | Discovered new exit (range 13) 20383 | -6/Zion | Learned Factory scanalyzer intel 20388 | -6/Zion | Learned location of Warlord (-5) 20415 | -6/Zion | Learned Factory terminal intel 20435 | -6/Zion | Learned location of 1 exit from Factory 20772 | -6/Zion | Given A8's code to call for help 20837 | -6/Zion | Gained Derelict followers 20888 | -6/Zion | Learned location of Armory (-3) 20985 | -6/Zion | Received a hallucinogenic algorithm 21630 | -6/Zion | Rebuked by Imprinter 21922 | -6/Zion | Discovered new exit (range 15) 22233 | -6/Zion | Build established: Hauler-Gladiator 22762 | -6/Zion | Build established: Hauler-Tank 22778 | -6/Zion | Saw the warning signs outside the Deep Caves entrance 22787 | -6/Zion | Entered Deep Caves 22787 | -6/Deep Caves | Accompanied by 5 allies 22789 | -6/Deep Caves | Met 5H-AD0 23066 | -6/Deep Caves | Z-Facility disabled 23081 | -6/Deep Caves | Attacked by Z-Imprinter 23094 | -6/Deep Caves | Allies destroyed Z-Imprinter 23174 | -6/Deep Caves | Found Prototype Device 23174 | -6/Deep Caves | Identified Zio. Metafield Generator 23192 | -6/Deep Caves | Found Prototype Protection 23192 | -6/Deep Caves | Identified Zio. Weapon Casing 23760 | -6/Deep Caves | Discovered new exit (range 18) 23987 | -6/Deep Caves | Spotted as-53377 24039 | -6/Deep Caves | Destroyed as-53377 24067 | -6/Deep Caves | Triggered Deep Caves wall 24070 | -6/Deep Caves | Spotted AS-16136 24071 | -6/Deep Caves | Exposed GOLEM chamber 24083 | -6/Deep Caves | Core integrity fell below 50% 24105 | -6/Deep Caves | Spotted AS-00262 24123 | -6/Deep Caves | Destroyed AS-16136 24132 | -6/Deep Caves | Destroyed AS-00262 24234 | -6/Deep Caves | Destroyed 44 combat bots 24383 | -6/Deep Caves | Build established: Hauler-Mutant 24794 | -6/Deep Caves | Found GOLEM Unit 25223 | -6/Deep Caves | Build established: Hauler-Golem 25607 | -6/Deep Caves | Triggered Deep Caves wall 25611 | -6/Deep Caves | Spotted as-48492 25696 | -6/Deep Caves | Core integrity fell below 20% 25757 | -6/Deep Caves | Destroyed as-48492 25907 | -6/Deep Caves | Found Firepult 25937 | -6/Deep Caves | Found GOLEM Unit 25946 | -6/Deep Caves | Found GOLEM Unit 26016 | -6/Deep Caves | Found GOLEM Unit 26284 | -6/Deep Caves | Found GOLEM Unit 26334 | -6/Deep Caves | Found GOLEM Unit 26597 | -6/Deep Caves | Build established: Hauler-Mutant 26661 | -6/Deep Caves | Reached level 22 26696 | -6/Deep Caves | Found GOLEM Unit 26867 | -6/Deep Caves | Entered Proximity Caves 27180 | -5/Proximity Caves | Spotted B-75 Beast 27191 | -5/Proximity Caves | Destroyed B-75 Beast 27325 | -5/Proximity Caves | Build established: Hauler-Tank 27499 | -5/Proximity Caves | Discovered new exit (range 15) 27566 | -5/Proximity Caves | Entered Factory 27567 | -5/Factory | Identified exit to Upper Caves 27568 | -5/Factory | Identified exit to Factory 27570 | -5/Factory | Loaded intel: 20 terminal locations 27571 | -5/Factory | Loaded intel: 4 scanalyzer locations 27816 | -5/Factory | Found Mni. Smartbomb Launcher 27855 | -5/Factory | Build established: Hauler-Skirmisher 27978 | -5/Factory | Reached level 23 28249 | -5/Factory | Entered Upper Caves 28310 | -5/Upper Caves | Attracted the attention of an 0b10 outpost 28715 | -5/Upper Caves | Build established: Hauler-Mutant 28773 | -5/Upper Caves | Learned Factory stockpile data 28778 | -5/Upper Caves | Learned 12 Factory zone layouts 28832 | -5/Upper Caves | Discovered new exit (range 22) 28875 | -5/Upper Caves | Entered another Upper Caves area 28875 | -5/Upper Caves | Accompanied by 1 ally 28881 | -5/Upper Caves | Discovered exit to Factory (range 7) 29171 | -5/Upper Caves | Build established: Hauler-Tank 29409 | -5/Upper Caves | Discovered new exit (range 18) 29530 | -5/Upper Caves | Attacked by a delusional Derelict stockpiling parts 29636 | -5/Upper Caves | Attracted the attention of an 0b10 checkpoint 29676 | -5/Upper Caves | Entered Warlord 29720 | -5/Warlord | Discovered new exit (range 23) 30060 | -5/Warlord | Met Warlord 30085 | -5/Warlord | Warlord's base attacked by MAIN.C 30103 | -5/Warlord | Opened Warlord's prototype stash 30111 | -5/Warlord | Found Prototype Reactor 30111 | -5/Warlord | Identified Vortex Chain Reactor 30118 | -5/Warlord | Found Prototype Device 30118 | -5/Warlord | Identified Exp. Cloaking Device 30128 | -5/Warlord | Found Prototype Device 30128 | -5/Warlord | Identified Exp. Focal Shield 30376 | -5/Warlord | Found Prototype Energy Gun 30376 | -5/Warlord | Identified Vortex Shotgun 30381 | -5/Warlord | Found Prototype Energy Cannon 30381 | -5/Warlord | Identified Vortex Driver 30389 | -5/Warlord | Found Prototype Launcher 30391 | -5/Warlord | Identified Vortex Catalyst Activator 30435 | -5/Warlord | Warlord forces counterattacked 30774 | -5/Warlord | Opened side exit 30791 | -5/Warlord | Spotted Striker 30793 | -5/Warlord | Destroyed Striker 30807 | -5/Warlord | Spotted Executioner 30810 | -5/Warlord | Spotted B-86 Titan 30812 | -5/Warlord | Destroyed B-86 Titan 30822 | -5/Warlord | Destroyed Executioner 30830 | -5/Warlord | Spotted Striker 30856 | -5/Warlord | Destroyed Striker 30864 | -5/Warlord | Spotted Striker 30877 | -5/Warlord | Destroyed 11 combat bots 30885 | -5/Warlord | Spotted Executioner 30888 | -5/Warlord | Spotted Striker 30893 | -5/Warlord | Core integrity fell below 50% 30905 | -5/Warlord | Entered Proximity Caves 30907 | -4/Proximity Caves | Reached level 24 31119 | -4/Proximity Caves | Learned location of Testing (-2) 31138 | -4/Proximity Caves | Build established: Hauler-Mutant 31283 | -4/Proximity Caves | Discovered exit to Factory (range 8) 31289 | -4/Proximity Caves | Learned Research garrison access intel 31304 | -4/Proximity Caves | Entered Factory 31304 | -4/Factory | Accompanied by 2 allies 31305 | -4/Factory | Identified exit to Research 31305 | -4/Factory | Identified exit to Upper Caves 31305 | -4/Factory | Core integrity fell below 50% 31306 | -4/Factory | Reached level 25 31566 | -4/Factory | Incoming investigation squad redirected 31577 | -4/Factory | Fabricated Biometal Heavy Treads? 31591 | -4/Factory | Build established: Hauler-Skirmisher 31611 | -4/Factory | Local fabrication network quarantined 32109 | -4/Factory | Incoming investigation squad redirected 32215 | -4/Factory | Garrison activated, responded to threat 32222 | -4/Factory | Reached level 26 32222 | -4/Factory | Upgraded with Utility slot (x1) 32287 | -4/Factory | Destroyed 19 combat bots 32470 | -4/Factory | Sucked down chute 32470 | -4/Factory | Entered Waste 32470 | -4/Waste | The area was eerily silent 32571 | -4/Waste | Found Damper Plating 32646 | -4/Waste | Discovered new exit (range 21) 32786 | -4/Waste | Build established: Hauler-Mutant 33138 | -4/Waste | Entered Factory 33512 | -4/Factory | Entered Upper Caves 33579 | -4/Upper Caves | Learned Research machine intel 33869 | -4/Upper Caves | Discovered new exit (range 24) 33969 | -4/Upper Caves | Learned 8 Factory zone layouts 34113 | -4/Upper Caves | Entered another Upper Caves area 34292 | -4/Upper Caves | Learned location of Quarantine (-3) 34323 | -4/Upper Caves | Attracted the attention of an 0b10 outpost 34353 | -4/Upper Caves | Reached level 27 34375 | -4/Upper Caves | Destroyed 15 combat bots 34499 | -4/Upper Caves | Discovered exit to Research (range 13) 34706 | -4/Upper Caves | Ambushed by wild Derelicts 34846 | -4/Upper Caves | Learned Research interactive machine intel 34892 | -4/Upper Caves | Found Alien Artifact 34892 | -4/Upper Caves | Identified Core Expander 34892 | -4/Upper Caves | Installed Core Expander, added new Weapon slot 34942 | -4/Upper Caves | Attacked by a delusional Derelict stockpiling Unaware 35147 | -4/Upper Caves | Spotted B-86 Titan 35164 | -4/Upper Caves | Allies destroyed B-86 Titan 35272 | -4/Upper Caves | Attracted the attention of an 0b10 checkpoint 35418 | -4/Upper Caves | Discovered new exit (range 20) 35688 | -4/Upper Caves | Entered Zhirov 35688 | -4/Zhirov | Accompanied by 3 allies 35688 | -4/Zhirov | Discovered new exit (range 3) 35759 | -4/Zhirov | Learned location of Command (-1) 35870 | -4/Zhirov | Found Alien Artifact 35870 | -4/Zhirov | Identified Transdimensional Reconstructor 35870 | -4/Zhirov | Warped through subspace 35922 | -4/Zhirov | Found Alien Artifact 35922 | -4/Zhirov | Identified Integrated Reactor 35922 | -4/Zhirov | Installed Integrated Reactor, increased core energy generation (+2%) 36084 | -4/Zhirov | Cloak Generator disabled 36084 | -4/Zhirov | Attacked by Zhirov 36322 | -4/Zhirov | Entered Proximity Caves 36706 | -3/Proximity Caves | Discovered exit to Research (range 20) 36814 | -3/Proximity Caves | Attracted the attention of an 0b10 outpost 36831 | -3/Proximity Caves | Reached level 28 36833 | -3/Proximity Caves | Upgraded with Utility slot (x1) 37039 | -3/Proximity Caves | Entered Research 37039 | -3/Research | Accompanied by 2 allies 37040 | -3/Research | Loaded intel: 133 machine locations 37041 | -3/Research | Loaded intel: 42 interactive machine locations 37042 | -3/Research | Loaded intel: 4 garrison access locations 37083 | -3/Research | Identified exit to Armory 37083 | -3/Research | Identified exit to Quarantine 37315 | -3/Research | Incoming investigation squad redirected 37339 | -3/Research | Build established: Hauler-Skirmisher 37578 | -3/Research | Reached level 29 37676 | -3/Research | Destroyed 11 combat bots 37789 | -3/Research | First assault squad dispatched 37804 | -3/Research | Incoming assault squad redirected 38158 | -3/Research | Fabricated Exp. Terrain Scanner? 38363 | -3/Research | Found Prototype Processor 38363 | -3/Research | Identified Exp. Target Analyzer 38376 | -3/Research | Entered Quarantine 38377 | -3/Quarantine | Maximum security lockdown engaged 38476 | -3/Quarantine | Found Alien Artifact 38476 | -3/Quarantine | Identified Stasis Generator 38525 | -3/Quarantine | Reached level 30 38525 | -3/Quarantine | Destroyed Executioner 38627 | -3/Quarantine | Spotted Executioner 38635 | -3/Quarantine | Spotted Investigator 38638 | -3/Quarantine | Destroyed Executioner 38642 | -3/Quarantine | Destroyed Investigator 38659 | -3/Quarantine | Core integrity fell below 50% 38732 | -3/Quarantine | Destroyed 50 combat bots 38777 | -3/Quarantine | Destroyed Executioner 38779 | -3/Quarantine | Spotted Investigator 38780 | -3/Quarantine | Spotted Striker 38784 | -3/Quarantine | Destroyed Striker 38798 | -3/Quarantine | Scanned by Researcher 38802 | -3/Quarantine | Destroyed Investigator 38811 | -3/Quarantine | Spotted Executioner 38812 | -3/Quarantine | Spotted Executioner 38815 | -3/Quarantine | Reached level 31 38815 | -3/Quarantine | Destroyed Executioner 38815 | -3/Quarantine | Upgraded with Utility slot (x1) 38828 | -3/Quarantine | Destroyed Executioner 38856 | -3/Quarantine | Destroyed 29 combat bots 38981 | -3/Quarantine | Spotted Executioner 38983 | -3/Quarantine | Spotted Executioner 38987 | -3/Quarantine | Destroyed Executioner 38989 | -3/Quarantine | Spotted Striker 39013 | -3/Quarantine | Core integrity fell below 20% 39024 | -3/Quarantine | Destroyed Striker 39032 | -3/Quarantine | Destroyed by Executioner with Helical Railgun Last Messages --------------- 39026_ Slug penetrates Wall. 39026_ Penetrated by Slug. 39026_ Slug penetrates Wall. 39026_ Asb. Nanovents destroyed. 39026_ Penetrated by Slug. 39027_ GOLEM Unit beginning Asb. Nanovents integration. 39027_ Acquired Protomatter-63. 39027_ I-47 Archangel distress signal jammed. 39027_ W-44 Eye distress signal jammed. 39027_ Slug penetrates Wall. 39028_ Asb. Nanovents integration complete. 39028_ Upgraded: Core Integrity (+50) 39028_ I-47 Archangel distress signal jammed. 39030_ Slug penetrates Wall. 39030_ I-47 Archangel distress signal jammed. 39030_ W-44 Eye distress signal jammed. 39031_ I-47 Archangel distress signal jammed. 39031_ W-44 Eye distress signal jammed. 39032_ I-47 Archangel distress signal jammed. 39032_ Penetrated by Slug. Map ----- +----------------------------------------------------+ | ###### ############## ####### " ? ??? | | ###### ############## ####### """"""? ? | | ###### ############## " # # ? | | ###### ############## " " T ####### ? | | ###### ############## """ ################# | | ###### ############## """ """ #################+ | | ###### ############## """ #################? | | ###### ############## ################# | | ###### ###################+#################### | | ###### %% "%" i | | ###### %*% " | | ###### =!%% | | ############%## ########### ## ############### | | ######|%% = =%# #### # ## ############### | | ###### !!""" # #### # ## ############### | | #####" *"" #%#### "" # #################### | | #### # % "" =# # " # "%######## ###### | | ######% = !%= E*!!* " # %%######## ###### | | ######= / %=h=i#%"[ "=# !######## ###### | | ######=!= "" # =|g |" =#%* ######## ###### | | ###### [ "" = !! =#h=%######## ###### | | #### # ; ! ! !=%=%# ##### # "" | | ############### ! %[[%! ##########+##+# "" | | ###### ## ### # % *=!#%= w # " | | ############### !# * %!%=/ + | | ############### ==# =! @#! # " | | ############### !%######### ###########+#### "" | | ###### # [[####### ####### # T" | | ###### """ # ####### ####### ###### | | ###### """ = # #######"" ""####### """ # | | ###### """ # [!#######"""""####### """ # | | ## # """ # =%#######"""""####### """ # """ | | ## ### """ # !*################### # """? | | ## ### """ + # """"" ############# | | ## ### """ # # ""T"" ################## | | ## ### # # ################ | | ############### # """ """ ################ | | # ^ # """ """ # ############ | | # # """ """ # ### #? | | "" """ # + # ### """ # | | "" """ + ^ !# """ """ #" ### """ ?? | | "" """ # ### ==# """ """ #T ### """ #?? | | # ### =!%# """ """ #" ### + | | = # ### =!# # ### ? ??? | | ######## =# ##+#### ""T?? ?# ? | | "T""########### ############### + """?" ???? | | """"########### # ????? | | ###?########### #### #####+?##??? | | ####################### ?????? | | ####################### ? #????? | +----------------------------------------------------+ Best States ------------- Heat Dissipation 122 Coolant Potential 65 Energy Generation 70 Energy Capacity 1700 Matter Stores 500 Matter Capacity 800 Sight Range 23 Robot Scan Range 17 Terrain Scan Range 30 Terrain Scan Density 310 ECM Strength 1 Jamming Range 16 Cloak Strength 4 Power Amplification 20 Additional Mass Support 20 Armor Coverage 4400 Resistance: KI 20 Resistance: TH 15 Resistance: EX 15 Resistance: EM 90 Resistance: I 15 Resistance: S 15 Resistance: P 15 Weapon Cycling 30 Phase Shifting 8 Evasion (%) 48 Targeting Accuracy 8 Core Analysis 8 Recoil Reduction 2 Salvage Targeting 1 Offensive Hacking 15 Defensive Hacking 17 Item Schematics ----------------- Tractor Beam | -10/Materials | Hacked Lgt. Armor Plating | -10/Mines | Hacked Med. Armor Plating | -9/Materials | Hacked Imp. Treads | -9/Materials | Hacked Hvy. Ion Engine | -9/Materials | Scanalyzed Hrd. Light Armor Plating | -9/Materials | Scanalyzed Datajack | -9/Materials | Scanalyzed Arm. Treads | -8/Mines | Hacked Gauss Rifle | -7/Factory | Scanalyzed Combat Drone Bay | -7/Data Miner | Free Lgt. Regenerative Plating | -7/Data Miner | Free Exp. Flexi-carbon Leg | -7/Data Miner | Free Exp. Cesium-ion Thruster | -7/Data Miner | Free Triangulator | -7/Data Miner | Free Exp. Sensor Array | -7/Data Miner | Free Exp. Terrain Scanner | -7/Data Miner | Free Exp. Terrain Scan Processor | -7/Data Miner | Free Tactical Coordination Suite | -7/Data Miner | Free Cloaking Device | -7/Data Miner | Free Mni. Smartbomb Launcher | -7/Data Miner | Free Plasma Sword | -7/Data Miner | Free Greatsword | -6/Factory | Scanalyzed Battle Rifle | -6/Zion | Free Battle Cannon | -6/Zion | Free Phasing Sabre | -6/Zion | Free Imp. Powered Armor | -5/Factory | Hacked Assault Drone Bay | -4/Zhirov | Free Exp. Heat Sink | -4/Zhirov | Free Exp. Optical Array | -4/Zhirov | Free Imp. Arc Thrower | -4/Zhirov | Free Hdn. Centrium Heavy Treads | -3/Research | Scanalyzed Robot Schematics ------------------ O-16 Technician | -10/Materials | Hacked S-27 Virus | -7/Data Miner | Free G-50 Soldier | -7/Data Miner | Free G-67 Veteran | -7/Data Miner | Free L-41 Fighter | -7/Data Miner | Free P-70 Sage | -7/Data Miner | Free I-36 Angel | -7/Data Miner | Free I-47 Archangel | -7/Data Miner | Free Fabricated ------------ Exp. Terrain Scanner | x1 | -6/Factory Biometal Heavy Treads | x2 | -4/Factory | Preloaded Exp. Terrain Scanner | x1 | -3/Research Alien Tech Used ----------------- Core Expander Transdimensional Reconstructor Integrated Reactor Stasis Generator Achievements -------------- No Signal Challenges ------------ None RPGLIKE | -11 -10 -10 -9 -9 -9 -8 -8 -7 -7 -7 -7 -6 -6 -6 -6 -6 -6 -6 -6 -5 -5 -5 -5 -5 -4 -4 -4 -4 -4 -4 -4 -3 -3 -3 --------- Run | Scr Mat Min Mat Min Exi Min Mat Fac Low Low Dat Pro Fac Was Fac Low Low Zio Dee Pro Fac Upp Upp War Pro Fac Was Fac Upp Upp Zhi Pro Res Qua Levels Raised 30 | . 1 2 5 1 . 1 2 2 1 . 1 1 1 . 1 . 1 . 1 . 1 . . . 1 2 . . . 1 . 1 1 2 XP Earned 48668 | 3000 2335 3049 7777 513 117 1350 3886 2870 860 1079 204 2605 951 71 1856 352 496 105 1079 756 831 346 261 706 867 2769 46 104 175 854 86 1499 2050 2763 XP Spent 47880 | 2990 1505 750 9750 1500 . . 4475 2600 . . 2900 . 3200 . 1750 . . . 1455 800 . . . 2280 . 3500 . . . . . 3800 . 4625 Upgrades 63 | 12 7 1 10 1 . . 6 1 . . 1 . 1 . 1 . . . 12 1 . . . 3 . 1 . . . . . 1 . 4 Power Slot 1 | . . . . . . . 1 . . . . . . . . . . . . . . . . . . . . . . . . . . . Propulsion Slot 1 | 1 . . . . . . . . . . . . . . . . . . . . . . . . . . . . . . . . . . Utility Slot 13 | 1 1 . 4 . . . 1 1 . . 1 . 1 . . . . . . . . . . . . 1 . . . . . 1 . 1 Weapon Slot 2 | 1 . . . . . . 1 . . . . . . . . . . . . . . . . . . . . . . . . . . . Core Integrity 15 | . 2 . . . . . 1 . . . . . . . . . . . 11 . . . . . . . . . . . . . . 1 Heat Dissipation 8 | 1 1 . 2 . . . . . . . . . . . . . . . . . . . . 2 . . . . . . . . . 2 Energy Generation 1 | . . . . . . . . . . . . . . . . . . . 1 . . . . . . . . . . . . . . . Mass Support 1 | . 1 . . . . . . . . . . . . . . . . . . . . . . . . . . . . . . . . . Inventory Capacity 8 | 2 . 1 2 1 . . . . . . . . . . 1 . . . . . . . . 1 . . . . . . . . . . Sight Range 1 | 1 . . . . . . . . . . . . . . . . . . . . . . . . . . . . . . . . . . Sensor Range 2 | 1 1 . . . . . . . . . . . . . . . . . . . . . . . . . . . . . . . . . Terrain Scan Density 3 | 2 . . . . . . 1 . . . . . . . . . . . . . . . . . . . . . . . . . . . Ranged Accuracy 5 | . 1 . 2 . . . 1 . . . . . . . . . . . . 1 . . . . . . . . . . . . . . Hack Attack % 1 | 1 . . . . . . . . . . . . . . . . . . . . . . . . . . . . . . . . . . Hack Defense % 1 | 1 . . . . . . . . . . . . . . . . . . . . . . . . . . . . . . . . . . Protomatter Created 13007 | . 244 310 855 6 . 57 941 315 61 325 . 336 117 330 106 152 322 . 1638 204 86 139 147 104 . 1102 . . . 747 . 411 586 3366 Integrity Restored 23222 | . 653 930 1949 18 153 33 1844 664 316 1082 . 1222 180 693 521 450 974 . 3350 311 87 224 106 . . 1932 . . . 2130 54 919 954 1473 Core 15410 | . 530 930 1466 18 153 33 1249 395 298 923 . 928 39 49 260 284 389 . 2104 117 42 98 60 . . 1841 . . . 634 54 667 376 1473 Parts 7812 | . 123 . 483 . . . 595 269 18 159 . 294 141 644 261 166 585 . 1246 194 45 126 46 . . 91 . . . 1496 . 252 578 . Protomatter Decayed 4312 | . 22 . 141 . 60 46 244 148 10 . . 143 54 95 197 40 112 6 704 96 53 63 109 1391 . 245 . . . 16 . 101 148 68 Game ------ Seed LinkedWeaponChronowheel Manual? 0 Play Time 06:18:30 Cumulative 197.8 hours Start 2020.09.03 @ 16:27:46 End 2020.09.05 @ 13:09:11 Sessions 5 Manual Loads 0 Difficulty Rogue Special Mode Winter2019/RPGLIKE Game No. 77 Rogue 77 Adventurer 0 Explorer 0 Win Type - Total 3 Types 2/0/0/1/0/0/0 Lore% 80 Gallery% 77 Achievement% 68 Wizard Run 0 Options --------- ASCII 0 Keyboard 0 Movement Numpad Keybinds 0 Fullscreen 1 Font 18/SmallcapsGlow Map View 76x50 Tactical HUD 1 Map Filters NONE Filters NONE Steam 1 RUN: 4c18fd95-52be-409d-832e-2a5c217f68c7